Workbook

Sheet Main
G1: Version 4
G2: =TODAY() -> 2024-02-02
F3: Customer Name:
F4: PO Number:
F5: AGI Westeel Sales Order Number:
B6: Location Usage | J6: Bin Series | K6: Standard Peak Load | L6: Higher Rated Peak Load
B7: Location Type | C7: * | D7: =INDEX(Tables!$F$8:$F$10,Tables!L19) ->  | F7: * - Mandatory Fields
K8: lbs (kN) | L8: lbs (kN)
B9: Bin Requirements | J9: Non-Structural Roof
B10: Bin Type | C10: * | D10: =INDEX(Tables!$F$13:$F$20,Tables!L20) ->  | J10: 15 | K10: 4000 (17.8) | L10: 8000 (35.6)
B11: Diameter [ft.] | C11: * | D11: =INDEX(Tables!$A$2:$A$18,Tables!L21) ->  | J11: 16
B12: Tier | C12: * | D12: =INDEX(Tables!$H$2:$H$16,Tables!L22) ->  | J12: 18
B13: Peak Load [lbs.] | C13: * | D13: =INDEX(Tables!$J$2:$J$5,Tables!L23) ->  | J13: 21
J14: 24
B15: Bin Location | J15: 27 | K15: 5000 (22.2) | L15: 10000 (44.5)
B16: Location Name | C16: * | J16: 30
B17: Location Latitude [degrees] | C17: * | J17: 33
B18: Location Longitude [degrees] | C18: * | J18: 36
B19: Location Environmental Data is based on | D19: =IFERROR(IF(OR(LAT="",LONG=""),"",IF(RSL='CDN RSL & WS'!F3,'CDN RSL & WS'!B3,"")),"") ->  | J19: 39
J20: 42
J21: 45
B22: Cable Monitoring System | J22: 48
B23: Cable Type | C23: * | D23: =INDEX(Tables!$F$2:$F$5,Tables!L24) ->  | J23: 51 | K23: 8000 (35.6) | L23: 12000 (53.4)
J24: 54
B25: Results | J25: Structural Roof
B26: Roof Requirements | D26: Description | E26: Part Number | J26: 48 | K26: 20000 (89.0) | L26: 60000 (266.9)
B27: Standard Roof | D27: =IF(D23=" ","-",IFERROR(INDEX(Tables!$V$1:$V$17,MATCH(nDia,Tables!$U$1:$U$17,0)),"-")) -> - | E27: =IF(D23=" ","-",IFERROR(INDEX(Tables!$W$1:$W$17,MATCH(nDia,Tables!$U$1:$U$17,0)),"-")) -> - | J27: 51
B28: Roof Upgrade Required | D28: =IFERROR(IF(Tables!N24=" ","-",INDEX(Tables!$V$18:$V$42,MATCH($E$28,Tables!$W$18:$W$42,0))),"-") -> - | E28: =IF(Tables!N24=" ","-",IF(OR(BT="Westeel EasyDry SGL Fan Inlet",BT="Westeel EasyDry DBL Fan Inlet"),IFERROR(INDEX(Tables!Y1:AC5,MATCH(nDia,Tables!Y1:Y16,0),MATCH(HLOOKUP(MIN(Calculations!$C$28:$F$29),Calculations!$C$26:$F$27,2,FALSE),Tables!L1:P1,0)),"-"),IFERROR(INDEX(Tables!L1:P16,MATCH(nDia,Tables!L1:L16,0),MATCH(HLOOKUP(MIN(Calculations!$C$28:$F$29),Calculations!$C$26:$F$27,2,FALSE),Tables!L1:P1,0)),"-"))) -> - | J28: 54
B29: Required Monitoring Cable Hanger System | D29: =IF(RCBLTYPE="None","-",IF(OR(E27=212601,E28=212610,E28=212599,E28=212598),Calculations!E18,"-")) -> - | E29: =IFERROR(IF(OR(E27=212601,E28=212610,E28=212599,E28=212598),Calculations!D18,"-"),"-") -> - | J29: 60
B31: Remaining Peak Load | D31: =IFERROR(IF(Tables!N24=" ","-",ROUNDDOWN(RPL,0)&" lbs ("&ROUNDDOWN(RPL/224.80894387096,1)&" kN)"),"") -> -
B32: =IF(COUNTIF($D$28,"*Structural Roof")=1,"Structural roof replaces standard roof. You will need to purchase "&E28&" instead of the standard roof.","") -> 
B33: =IF(LT="Commercial", "Please contact AGI Westeel Customer Service about seismic considerations.", "") ->  | D33: =IF(B33="Commercial", " Please contact Westeel Engineering about seismic considerations", "") ->  | E33: =IF(D33="Commercial", " Please contact Westeel Engineering about seismic considerations", "") -> 
B34: =IF(D23=" ","",IFERROR(IF(WIND>0.57,"Please contact AGI Westeel Customer Service for potential wind upgrades.",""),"")) -> 
B35: =IFERROR(IF(Tables!N24=" ","",IF(AND(RCBLTYPE="None", nDia<=21, MIN(Calculations!C28:F29)<>9999), "",IF(MIN(Calculations!C28:F29)=9999,"ROOF IS OVERLOADED. Neither the standard roof nor any standard roof upgrades will accommodate the loads. Please contact AGI Westeel Customer Service for potential further roof upgrades.",""))),"") -> 
B36: =IF(D23=" ","",IF(BT="Stiffened AGI Westeel Hopper","Currently AGI Westeel 15'-27' welded hopper bottoms are manufactured for unstiffened bins only. Please ensure the third-party hopper you are using will work with AGI Westeel Products.","")) -> 
B40: Important Notes - For Flat Bottom Bins: This tool assumes the AGI SureTrack Monitoring System for all bin sizes, and the cables end 2ft. up from the floor. - For Hopper Bottom Bins: This tool assumes the AGI SureTrack Monitoring System for all bin sizes, and the cables attach to the hopper cone. - For SSK Bins: This tool assumes the AGI SureTrack Monitoring System for all bin sizes, and the cables attach to the hopper cone. - If your Monitoring Cable System does not fall under these parameters please contact AGI Westeel Customer Service for a custom analysis. - Monitoring Cable Systems are not available for AGI Westeel EasyDry Bins. - If your bin is using an AGI SureTrack Monitoring System Package, the package will come with a standard AGI SureTrack hanger system. - If your Monitoring Cable Hanger System is different from the one this tool has recommended, please contact AGI Westeel Customer Service for further information. - For SSK Hoppers the angle of the hopper sheets are 45° for 15'-21' bins and 40° for 24'-27' bins. - For Welded Hoppers the angle of the hopper sheets are 35° for 15'-27' bins.

Sheet Quick Notes

Sheet Instructions & Training

Sheet Calculations (hidden)
A1: Radial Cable Loads
A2: Central Cable Radial Distance [ft] | B2: rc = | C2: =INDEX(STCCL,MATCH(nDia,DIAMETER,0)) -> 0 | D2: (SureTrack Central Cable locations)
A3: Maximum Calculated Cable Length for Flat Bottom Bins [ft] | B3: Lcf = | C3: =IF(RCBLTYPE="None",0,IF(OR(BT="Unstiffened AGI Westeel Flat Bottom",BT="Stiffened AGI Westeel Flat Bottom"),((1.25+nT*44)/12-2)+(nDia/2-rcable)*TAN(RADIANS(30)),0)) -> 0 | D3: (Length of cable from roof sheet to bin floor)
A4: Maximum Calculated Cable Length for Hopper Bottom and SSK Bins [ft] | B4: Lch = | C4: =IF(OR(RCBLTYPE="None",BT="Unstiffened AGI Westeel Flat Bottom",BT="Stiffened AGI Westeel Flat Bottom"),0,((1.25+nT*44)/12)+(nDia/2-rcable)*TAN(RADIANS(30))+(nDia/2-rcable)*TAN(RADIANS(45))) ->  | D4: (Length of cable from roof sheet to hopper cone, assumes angle of hopper is 45°)
A5: Cable Length [ft] | B5: L = | C5: =IF(RCBLTYPE=" ",NA(),IF(RCBLTYPE="None",0,IF(OR(BT="Unstiffened AGI Westeel Flat Bottom",BT="Stiffened AGI Westeel Flat Bottom"),Lcf,IF(OR(BT="Unstiffened AGI Westeel Hopper",BT="Stiffened AGI Westeel Hopper",BT="Stiffened AGI Westeel SSK"),Lch)))) -> 
A6: Product Density [lb/ft3] | B6: p = | C6: =CONVERT(772*1000,"g","lbm")/(CONVERT(1,"m","ft"))^3 -> 48.19438556 | D6: (Assume product used is wheat = 772 kg/m3)
A7: Coefficient of Friction | B7: u = | C7: 0.37
A8: Lateral to Vertical Pressure Ratio | B8: k = | C8: 0.5 | E8: Coefficients of OPI radial cable loads
A9: Sensor Spacing [ft] | B9: ss = | C9: 6 | D9: (OPI) | E9: OPI | F9: C1 | G9: C2
A10: Sensor Weight [lbs/sensor] | B10: Ps = | C10: 45 | D10: (OPI) | E10: MDR | F10: 0.02384027778 | G10: 0.7582
A11: Central Temperature Cable Force [lbs] | B11: PRT = | C11: =COEFFC1*p*(nDia/2)^2/(mu^2*k)*(-1+EXP(-mu*k*L/(nDia/2)))+(COEFFC1*p*nDia/(mu*2)+COEFFC2)*L ->  | E11: CDR | F11: 0.03319166667 | G11: 1.4527
A12: Central Moisture Cable Force [lbs] | B12: PRM = | C12: =MOISTC1*p*(nDia/2)^2/(mu^2*k)*(-1+EXP(-mu*k*L/(nDia/2)))+(MOISTC1*p*nDia/(mu*2)+MOISTC2)*L + Ps/ss*L ->  | E12: C, DUE TO L | F12: =IF(L>80,F11,MDRC1) ->  | G12: =IF(L>80,G11,MDRC2) -> 
A13: Chosen Central Cable Force [lbs] | B13: =IF(RCBLTYPE="None","None",IF(RCBLTYPE="Temperature",B11,B12)) -> PRM = | C13: =IF(RCBLTYPE="AGI SureTrack Temp",PRT,IF(RCBLTYPE="AGI SureTrack Moist/Moist & Temp",PRM,0)) -> 0 | E13: MOIST. | F13: 0.01351319444 | G13: 0.056208
A15: Determining Cable Support System | D15: Indicator | E15: PN | F15: Logic
A16: Rib Caps | C16: =IF(AND(nDia<60,nDia>11),1,0) -> 0 | D16: 1 if used | E16: Varies by Dia | F16: 12' - 54' non-structural roofs, 16 tiers or less for flat bottom bins, 14 tiers or less for hopper bins
A17: Internal Bracket Hanging under Rafters, 48'-108' Diameter Roof | C17: =IF(OR(nDia=" ",nT=" "),NA(),IF(AND(BT="Stiffened AGI Westeel Flat Bottom",nDia>=48),2,0)) ->  | D17: 2 if used | E17: 212777 | F17: structural roof, stiffened bin
A18: Radial Cable Support Chosen: | C18: =IF(OR(RCBLTYPE="None",RCBLTYPE=" "),"",IF(OR(Main!E27=212601,Main!E28=212610,Main!E28=212599,Main!E28=212598),2,MAX(C16))) ->  | D18: =INDEX($E$16:$E$17,MATCH($C$18,CBLSPT,0)) ->  | E18: =IFERROR(INDEX($A$16:$A$17,MATCH($C$18,CBLSPT,0)),"") -> 
A20: Determining Remaining Peak Load | B20: RPL = | C20: =ROUNDDOWN(IF(AND(OR(PEAK_TYPE="Higher Rated",PEAK_TYPE="Unknown"),nDia=60),INDEX(Peak_Loads[HRSTRUCTURAL],MATCH(nDia,Peak_Loads[DIAMETER]),0)-CABLE_LOAD,IF(AND(PEAK_TYPE="Standard",nDia=60),INDEX(Peak_Loads[STDSTRUCTURAL],MATCH(nDia,Peak_Loads[DIAMETER]),0)-CABLE_LOAD,IF(AND(OR(PEAK_TYPE="Higher Rated",PEAK_TYPE="Unknown"),nDia>47,nDia<55,OR(Tables!S2=212598,Tables!S2=212599,Tables!S2=212610)),INDEX(Peak_Loads[HRSTRUCTURAL],MATCH(nDia,Peak_Loads[DIAMETER]),0)-CABLE_LOAD,IF(AND(PEAK_TYPE="Standard",nDia>47,nDia<55,OR(Tables!S2=212598,Tables!S2=212599,Tables!S2=212610)),INDEX(Peak_Loads[STDSTRUCTURAL],MATCH(nDia,Peak_Loads[DIAMETER]),0)-CABLE_LOAD,IF(AND(OR(PEAK_TYPE="Higher Rated",PEAK_TYPE="Unknown"),OR(nDia<22,AND(nDia>35,nDia<55))),INDEX(Peak_Loads[HR],MATCH(nDia,Peak_Loads[DIAMETER]),0)-CABLE_LOAD,IF(AND(PEAK_TYPE="Standard",OR(nDia<22,AND(nDia>35,nDia<55))),INDEX(Peak_Loads[STD],MATCH(nDia,Peak_Loads[DIAMETER]),0)-CABLE_LOAD,IF(AND(OR(PEAK_TYPE="Higher Rated",PEAK_TYPE="Unknown"),nDia>22,nDia<35),INDEX(Peak_Loads[HR],MATCH(nDia,Peak_Loads[DIAMETER]),0),INDEX(Peak_Loads[STD],MATCH(nDia,Peak_Loads[DIAMETER]),0)))))))),0) -> 
A22: Max Roof Cap. w/ RSL, & Std Peak Load Applied | B22: CBLSPT | C22: STD | D22: UP1 | E22: UP2 | F22: UP3 | G22: Formulas
A23: Rib Caps [psf] | B23: =$C$16 -> 0 | C23: =IF(PEAK_TYPE="Standard",INDEX(Leftover_RSL_at_SPL_RibCaps[STD],MATCH(nDia,Leftover_RSL_at_SPL_RibCaps[DIAMETER]),0),INDEX(Leftover_RSL_at_UPL_RibCaps[STD],MATCH(nDia,Leftover_RSL_at_UPL_RibCaps[DIAMETER]),0)) ->  | D23: =IF(PEAK_TYPE="Standard",INDEX(Leftover_RSL_at_SPL_RibCaps[UP1],MATCH(nDia,Leftover_RSL_at_SPL_RibCaps[DIAMETER]),0),INDEX(Leftover_RSL_at_UPL_RibCaps[UP1],MATCH(nDia,Leftover_RSL_at_UPL_RibCaps[DIAMETER]),0)) ->  | E23: =IF(PEAK_TYPE="Standard",INDEX(Leftover_RSL_at_SPL_RibCaps[UP2],MATCH(nDia,Leftover_RSL_at_SPL_RibCaps[DIAMETER]),0),INDEX(Leftover_RSL_at_UPL_RibCaps[UP2],MATCH(nDia,Leftover_RSL_at_UPL_RibCaps[DIAMETER]),0)) ->  | F23: =IF(PEAK_TYPE="Standard",INDEX(Leftover_RSL_at_SPL_RibCaps[UP3],MATCH(nDia,Leftover_RSL_at_SPL_RibCaps[DIAMETER]),0),INDEX(Leftover_RSL_at_UPL_RibCaps[UP3],MATCH(nDia,Leftover_RSL_at_UPL_RibCaps[DIAMETER]),0)) ->  | G23: = Rs - RSL
A24: Hanging Bracket [psf] | B24: =$C$17 ->  | C24: =IF(PEAK_TYPE="Standard", INDEX(Leftover_RSL_at_SPL_Hanging[STD],MATCH(nDia,Leftover_RSL_at_SPL_Hanging[DIAMETER]),0), INDEX(Leftover_RSL_at_UPL_Hanging[STD],MATCH(nDia,Leftover_RSL_at_UPL_Hanging[DIAMETER]),0)) ->  | D24: =IF(PEAK_TYPE="Standard", INDEX(Leftover_RSL_at_SPL_Hanging[UP1],MATCH(nDia,Leftover_RSL_at_SPL_Hanging[DIAMETER]),0), INDEX(Leftover_RSL_at_UPL_Hanging[UP1],MATCH(nDia,Leftover_RSL_at_UPL_Hanging[DIAMETER]),0)) ->  | E24: =IF(PEAK_TYPE="Standard", INDEX(Leftover_RSL_at_SPL_Hanging[UP2],MATCH(nDia,Leftover_RSL_at_SPL_Hanging[DIAMETER]),0), INDEX(Leftover_RSL_at_UPL_Hanging[UP2],MATCH(nDia,Leftover_RSL_at_UPL_Hanging[DIAMETER]),0)) ->  | F24: =IF(PEAK_TYPE="Standard", INDEX(Leftover_RSL_at_SPL_Hanging[UP3],MATCH(nDia,Leftover_RSL_at_SPL_Hanging[DIAMETER]),0), INDEX(Leftover_RSL_at_UPL_Hanging[UP3],MATCH(nDia,Leftover_RSL_at_UPL_Hanging[DIAMETER]),0)) ->  | G24: = Rs - RSL
C26: 10 | D26: 20 | E26: 30 | F26: 40
A27: Determining Roof Upgrade | B27: CBLSPT | C27: Standard Roof | D27: Upgrade 1 | E27: Upgrade 2 | F27: Upgrade 3
A28: Rib Caps | B28: =$C$16 -> 0 | C28: =IF(AND($B28>0,C23>0,C23<>"N/A"),C$26,9999) -> 
A29: Hanging Bracket | B29: =$C$17 -> 

Sheet Tables (hidden)
A1: DIAMETER | B1: AGI SURETRACK CABLE QTY CENTRE | C1: AGI SURETRACK CABLE QTY RAD 1 | D1: AGI SURETRACK CENTER CABLE RADIAL DISTANCE | F1: Cable Type | H1: TIER | J1: Peak Load | L1: Roof | M1: Standard Roof | N1: Upgrade 1 | O1: Upgrade 2 | P1: Upgrade 3 | R1: Roof Upgrade Required | S1: =HLOOKUP(MIN(Calculations!$C$28:$F$29),Calculations!$C$26:$F$27,2,FALSE) ->  | U1: Size | V1: Description | W1: Part Number | Y1: EasyDry Roof | Z1: Standard Roof | AA1: Upgrade 1 | AB1: Upgrade 2 | AC1: Upgrade 3
A2: =IF(AND(LT="Farm (Price List)",OR(BT="Unstiffened AGI Westeel Flat Bottom",BT="Unstiffened AGI Westeel Hopper",BT="Stiffened AGI Westeel Flat Bottom",BT="Stiffened AGI Westeel Hopper",BT="Stiffened AGI Westeel SSK")),15,"") ->  | B2: 1 | C2: N/A | D2: =((33/2)+(7.1*COS(RADIANS(30))))/12 -> 1.887398364 | F2: =IF(AND(LT="Farm (Price List)",OR(PEAK_TYPE="Standard",PEAK_TYPE="Higher Rated",PEAK_TYPE="Unknown"),AND(ISBLANK(Main!D16)=FALSE,ISBLANK(LAT)=FALSE,ISBLANK(LONG)=FALSE)),"None","") ->  | H2: =IF(AND(LT="Farm (Price List)",BT="Unstiffened AGI Westeel Hopper",nDia=16),"",IF(AND(LT="Farm (Price List)",BT="Unstiffened AGI Westeel Hopper",nDia>0,nDia<30),3,"")) ->  | J2: =IF(AND(LT="Farm (Price List)",ISNUMBER(N22)),"Standard","") ->  | L2: 15 | M2: - | R2: Roof Upgrade Part Number | S2: =INDEX(Tables!L1:P16,MATCH(nDia,Tables!L1:L16,0),MATCH($S$1,Tables!L1:P1,0)) ->  | U2: 15 | V2: =U2&"' "&"Non-Structural Roof" -> 15' Non-Structural Roof | W2: 212015 | Y2: 24 | Z2: - | AA2: 212024U1-ED
A3: =IF(AND(LT="Farm (Price List)",BT="Unstiffened AGI Westeel Hopper"),16,"") ->  | B3: 1 | C3: N/A | D3: =((33/2)+(7.1*COS(RADIANS(30))))/12 -> 1.887398364 | F3: =IF(OR(BT="AGI Westeel EasyDry SGL Fan Inlet",BT="AGI Westeel EasyDry DBL Fan Inlet"),"",IF(AND(LT="Farm (Price List)",OR(PEAK_TYPE="Standard",PEAK_TYPE="Higher Rated",PEAK_TYPE="Unknown"),AND(ISBLANK(Main!D16)=FALSE,ISBLANK(LAT)=FALSE,ISBLANK(LONG)=FALSE)),"AGI SureTrack Temp","")) ->  | H3: =IF(OR(AND(LT="Farm (Price List)",BT="Unstiffened AGI Westeel Hopper",nDia=16),AND(LT="Farm (Price List)",BT="Unstiffened AGI Westeel Flat Bottom",nDia=39)),"",IF(OR(AND(LT="Farm (Price List)",BT="Unstiffened AGI Westeel Flat Bottom",nDia>0,nDia<54),AND(LT="Farm (Price List)",OR(BT="Unstiffened AGI Westeel Hopper",BT="Stiffened AGI Westeel SSK"),nDia>0,nDia<30),AND(LT="Farm (Price List)",BT="Stiffened AGI Westeel Hopper",nDia>0,nDia<=33)),4,"")) ->  | J3: =IF(AND(LT="Farm (Price List)",ISNUMBER(N22)),"Higher Rated","") ->  | L3: 16 | M3: - | R3: Cable Support Required | S3: =Calculations!$E$18 ->  | U3: 16 | V3: 16' Non-Structural Roof | W3: 212016 | Y3: 27 | Z3: - | AA3: 212027U1
A4: =IF(AND(LT="Farm (Price List)",OR(BT="Unstiffened AGI Westeel Flat Bottom",BT="Unstiffened AGI Westeel Hopper",BT="Stiffened AGI Westeel Flat Bottom",BT="Stiffened AGI Westeel Hopper",BT="Stiffened AGI Westeel SSK")),18,"") ->  | B4: 1 | C4: N/A | D4: =((33/2)+(11.55*COS(RADIANS(30))))/12 -> 2.208549451 | F4: =IF(OR(BT="AGI Westeel EasyDry SGL Fan Inlet",BT="AGI Westeel EasyDry DBL Fan Inlet"),"",IF(AND(LT="Farm (Price List)",OR(PEAK_TYPE="Standard",PEAK_TYPE="Higher Rated",PEAK_TYPE="Unknown"),AND(ISBLANK(Main!D16)=FALSE,ISBLANK(LAT)=FALSE,ISBLANK(LONG)=FALSE)),"AGI SureTrack Moist/Moist & Temp","")) ->  | H4: =IF(OR(AND(LT="Farm (Price List)",OR(BT="Unstiffened AGI Westeel Flat Bottom",BT="Stiffened AGI Westeel Flat Bottom"),nDia>0,nDia<60),AND(LT="Farm (Price List)",OR(BT="Unstiffened AGI Westeel Hopper",BT="Stiffened AGI Westeel SSK"),nDia>0,nDia<30),AND(LT="Farm (Price List)",BT="Stiffened AGI Westeel Hopper",nDia>0,nDia<=33)),5,"") ->  | J4: =IF(AND(LT="Farm (Price List)",ISNUMBER(N22)),"Unknown","") ->  | L4: 18 | M4: - | R4: Support Part Number | S4: =Calculations!$D$18 ->  | U4: 18 | V4: 18' Non-Structural Roof | W4: 212018 | Y4: 30 | Z4: - | AA4: 212030U1 | AB4: 212030U2-ED
A5: =IF(AND(LT="Farm (Price List)",OR(BT="Unstiffened AGI Westeel Flat Bottom",BT="Unstiffened AGI Westeel Hopper",BT="Stiffened AGI Westeel Flat Bottom",BT="Stiffened AGI Westeel Hopper",BT="Stiffened AGI Westeel SSK")),21,"") ->  | B5: 1 | C5: N/A | D5: =((33/2)+(15.75*COS(RADIANS(30))))/12 -> 2.511658342 | H5: =IF(OR(AND(LT="Farm (Price List)",OR(BT="Unstiffened AGI Westeel Flat Bottom",BT="Stiffened AGI Westeel Flat Bottom"),nDia>0,nDia<60),AND(LT="Farm (Price List)",OR(BT="Unstiffened AGI Westeel Hopper",BT="Stiffened AGI Westeel SSK"),nDia>0,nDia<30),AND(LT="Farm (Price List)",BT="Stiffened AGI Westeel Hopper",nDia>0,nDia<=33)),6,"") ->  | L5: 21 | M5: - | N5: 212021U1 | U5: 21 | V5: 21' Non-Structural Roof | W5: 212021 | Y5: 36 | Z5: - | AA5: 212036U1 | AB5: 212036U2-ED
A6: =IF(AND(LT="Farm (Price List)",OR(BT="Unstiffened AGI Westeel Flat Bottom",BT="Unstiffened AGI Westeel Hopper",BT="AGI Westeel EasyDry SGL Fan Inlet",BT="Stiffened AGI Westeel Flat Bottom",BT="Stiffened AGI Westeel Hopper",BT="Stiffened AGI Westeel SSK")),24,"") ->  | C6: 3 | D6: =((33/2)+(19.94*COS(RADIANS(30))))/12 -> 2.814045546 | H6: =IF(AND(LT="Farm (Price List)",BT="Unstiffened AGI Westeel Hopper",OR(nDia=15,nDia=16,nDia=18)),"",IF(OR(AND(LT="Farm (Price List)",OR(BT="Unstiffened AGI Westeel Flat Bottom",BT="Stiffened AGI Westeel Flat Bottom"),nDia>0,nDia<60),AND(LT="Farm (Price List)",OR(BT="Unstiffened AGI Westeel Hopper",BT="Stiffened AGI Westeel SSK"),nDia>0,nDia<30),AND(LT="Farm (Price List)",BT="Stiffened AGI Westeel Hopper",nDia>0,nDia<=33),AND(LT="Farm (Price List)",OR(BT="AGI Westeel EasyDry SGL Fan Inlet",BT="AGI Westeel EasyDry DBL Fan Inlet"),nDia>0,nDia<30)),7,"")) ->  | L6: 24 | M6: - | N6: 212024U1 | U6: 24 | V6: 24' Non-Structural Roof | W6: 212024
A7: =IF(AND(LT="Farm (Price List)",OR(BT="Unstiffened AGI Westeel Flat Bottom",BT="Unstiffened AGI Westeel Hopper",BT="AGI Westeel EasyDry SGL Fan Inlet",BT="AGI Westeel EasyDry DBL Fan Inlet",BT="Stiffened AGI Westeel Flat Bottom",BT="Stiffened AGI Westeel Hopper",BT="Stiffened AGI Westeel SSK")),27,"") ->  | C7: 3 | D7: =((33/2)+(24.14*COS(RADIANS(30))))/12 -> 3.117154437 | F7: Location Type | H7: =IF(OR(AND(LT="Farm (Price List)",BT="Unstiffened AGI Westeel Hopper",OR(nDia=15,nDia=16,nDia=18,nDia=24))),"",IF(OR(AND(LT="Farm (Price List)",BT="Unstiffened AGI Westeel Flat Bottom",nDia>18,nDia<60),AND(LT="Farm (Price List)",OR(BT="Unstiffened AGI Westeel Hopper",BT="Stiffened AGI Westeel SSK"),nDia>0,nDia<30),AND(LT="Farm (Price List)",BT="Stiffened AGI Westeel Hopper",nDia>0,nDia<=33),AND(LT="Farm (Price List)",BT="Stiffened AGI Westeel Flat Bottom",nDia>0,nDia<66),AND(LT="Farm (Price List)",OR(BT="AGI Westeel EasyDry SGL Fan Inlet",BT="AGI Westeel EasyDry DBL Fan Inlet"),nDia>0,nDia<39)),8,"")) ->  | L7: 27 | M7: - | N7: 212027U1 | U7: 27 | V7: 27' Non-Structural Roof | W7: 212027
A8: =IF(AND(LT="Farm (Price List)",OR(BT="Unstiffened AGI Westeel Flat Bottom",BT="AGI Westeel EasyDry SGL Fan Inlet",BT="AGI Westeel EasyDry DBL Fan Inlet",BT="Stiffened AGI Westeel Flat Bottom",BT="Stiffened AGI Westeel Hopper")),30,"") ->  | C8: 3 | D8: =((52/2)+(17.36*COS(RADIANS(30))))/12 -> 3.419516751 | F8: Farm (Price List) | H8: =IF(OR(AND(LT="Farm (Price List)",BT="Unstiffened AGI Westeel Flat Bottom",nDia>24,nDia<60),AND(LT="Farm (Price List)",BT="Stiffened AGI Westeel SSK",nDia>0,nDia<30),AND(LT="Farm (Price List)",BT="Stiffened AGI Westeel Hopper",nDia>0,nDia<=33),AND(LT="Farm (Price List)",BT="Stiffened AGI Westeel Flat Bottom",nDia>0,nDia<66),AND(LT="Farm (Price List)",OR(BT="AGI Westeel EasyDry SGL Fan Inlet",BT="AGI Westeel EasyDry DBL Fan Inlet"),nDia>0,nDia<39)),9,"") ->  | L8: 30 | M8: - | N8: 212030U1 | O8: 212030U2 | U8: 30 | V8: 30' Non-Structural Roof | W8: 212030
A9: =IF(AND(LT="Farm (Price List)",OR(BT="Unstiffened AGI Westeel Flat Bottom",BT="Stiffened AGI Westeel Flat Bottom",BT="Stiffened AGI Westeel Hopper")),33,"") ->  | C9: 3 | D9: =((52/2)+(21.55*COS(RADIANS(30))))/12 -> 3.721903954 | F9: Commercial | H9: =IF(OR(AND(LT="Farm (Price List)",BT="Stiffened AGI Westeel Flat Bottom",nDia>0,nDia<66),AND(LT="Farm (Price List)",BT="Stiffened AGI Westeel SSK",nDia>0,nDia<27),AND(LT="Farm (Price List)",BT="Stiffened AGI Westeel Hopper",nDia>0,nDia<=33),AND(LT="Farm (Price List)",OR(BT="AGI Westeel EasyDry SGL Fan Inlet",BT="AGI Westeel EasyDry DBL Fan Inlet"),nDia>0,nDia<39)),10,"") ->  | L9: 33 | M9: - | N9: 212033U1 | O9: 212033U2 | U9: 33 | V9: 33' Non-Structural Roof | W9: 212033
A10: =IF(AND(LT="Farm (Price List)",OR(BT="Unstiffened AGI Westeel Flat Bottom",BT="AGI Westeel EasyDry SGL Fan Inlet",BT="AGI Westeel EasyDry DBL Fan Inlet",BT="Stiffened AGI Westeel Flat Bottom")),36,"") ->  | B10: 1 | C10: 3 | D10: =((52/2)+(25.75*COS(RADIANS(30))))/12 -> 4.025012846 | H10: =IF(OR(AND(LT="Farm (Price List)",BT="Stiffened AGI Westeel Flat Bottom",nDia>0,nDia<66),AND(LT="Farm (Price List)",OR(BT="AGI Westeel EasyDry SGL Fan Inlet",BT="AGI Westeel EasyDry DBL Fan Inlet"),nDia>24,nDia<39)),11,"") ->  | L10: 36 | M10: - | N10: 212036U1 | O10: 212036U2 | U10: 36 | V10: 36' Non-Structural Roof | W10: 212036
A11: =IF(AND(LT="Farm (Price List)",OR(BT="Unstiffened AGI Westeel Flat Bottom",BT="Stiffened AGI Westeel Flat Bottom")),39,"") ->  | B11: 1 | C11: 3 | D11: =((52/2)+(30*COS(RADIANS(30))))/12 -> 4.331730176 | H11: =IF(OR(AND(LT="Farm (Price List)",BT="Stiffened AGI Westeel Flat Bottom",nDia>0,nDia<66),AND(LT="Farm (Price List)",BT="Stiffened AGI Westeel Hopper",nDia=27),AND(LT="Farm (Price List)",OR(BT="AGI Westeel EasyDry SGL Fan Inlet",BT="AGI Westeel EasyDry DBL Fan Inlet"),nDia>24,nDia<39)),12,"") ->  | L11: 39 | M11: - | N11: 212039U1 | O11: 212039U2 | U11: 39 | V11: 39' Non-Structural Roof | W11: 212039
A12: =IF(AND(LT="Farm (Price List)",OR(BT="Unstiffened AGI Westeel Flat Bottom",BT="Stiffened AGI Westeel Flat Bottom")),42,"") ->  | B12: 1 | C12: 4 | D12: =((52/2)+(34.1*COS(RADIANS(30))))/12 -> 4.627622189 | F12: Bin Type | H12: =IF(AND(LT="Farm (Price List)",BT="Stiffened AGI Westeel Flat Bottom",nDia>0,nDia<66),13,"") ->  | L12: 42 | M12: - | N12: 212042U1 | O12: 212042U2 | U12: 42 | V12: 42' Non-Structural Roof | W12: 212042
A13: =IF(AND(LT="Farm (Price List)",OR(BT="Unstiffened AGI Westeel Flat Bottom",BT="Stiffened AGI Westeel Flat Bottom")),45,"") ->  | B13: 1 | C13: 4 | D13: =((52/2)+(38.32*COS(RADIANS(30))))/12 -> 4.932174456 | F13: =IF(LT="Farm (Price List)","Unstiffened AGI Westeel Flat Bottom","") ->  | H13: =IF(AND(LT="Farm (Price List)",BT="Stiffened AGI Westeel Flat Bottom",nDia>0,nDia<66),14,"") ->  | L13: 45 | M13: - | N13: 212045U1 | O13: 212045U2 | U13: 45 | V13: 45' Non-Structural Roof | W13: 212045
A14: =IF(AND(LT="Farm (Price List)",OR(BT="Unstiffened AGI Westeel Flat Bottom",BT="Stiffened AGI Westeel Flat Bottom")),48,"") ->  | B14: 1 | C14: 5 | D14: =((52/2)+(42.51*COS(RADIANS(30))))/12 -> 5.23456166 | F14: =IF(LT="Farm (Price List)","Stiffened AGI Westeel Flat Bottom","") ->  | H14: =IF(AND(LT="Farm (Price List)",BT="Stiffened AGI Westeel Flat Bottom",nDia>21,nDia<66),15,"") ->  | L14: 48 | M14: - | N14: 212048U1 | O14: 212048U2 | P14: 212598 | U14: 48 | V14: 48' Non-Structural Roof | W14: 212048
A15: =IF(AND(LT="Farm (Price List)",OR(BT="Unstiffened AGI Westeel Flat Bottom",BT="Stiffened AGI Westeel Flat Bottom")),51,"") ->  | B15: 1 | C15: 6 | D15: =((60/2)+(42.09*COS(RADIANS(30))))/12 -> 5.537584104 | F15: =IF(LT="Farm (Price List)","AGI Westeel EasyDry SGL Fan Inlet","") ->  | H15: =IF(AND(LT="Farm (Price List)",BT="Stiffened AGI Westeel Flat Bottom",nDia>21,nDia<66),16,"") ->  | L15: 51 | M15: - | N15: 212051U1 | O15: 212599 | U15: 51 | V15: 51' Non-Structural Roof | W15: 212051
A16: =IF(AND(LT="Farm (Price List)",OR(BT="Unstiffened AGI Westeel Flat Bottom",BT="Stiffened AGI Westeel Flat Bottom")),54,"") ->  | B16: 1 | C16: 6 | D16: =((60/2)+(46.28*COS(RADIANS(30))))/12 -> 5.839971307 | F16: =IF(LT="Farm (Price List)","AGI Westeel EasyDry DBL Fan Inlet","") ->  | L16: 54 | M16: - | N16: 212054U1 | O16: 212610 | U16: 54 | V16: 54' Non-Structural Roof | W16: 212054
A17: =IF(AND(LT="Farm (Price List)", BT="Stiffened AGI Westeel Flat Bottom"),60,"") ->  | B17: 1 | C17: 7 | D17: =((52/2)+(17.36*COS(RADIANS(30))))/12 -> 3.419516751 | F17: =IF(LT="Farm (Price List)","Unstiffened AGI Westeel Hopper","") ->  | U17: 60 | V17: =U17&"' "&"Structural Roof" -> 60' Structural Roof | W17: 212601
F18: =IF(LT="Farm (Price List)","Stiffened AGI Westeel Hopper","") ->  | L18: Developer Drop Down Lists | V18: 21' Upgrade 1 | W18: 212021U1
F19: =IF(LT="Farm (Price List)","Stiffened AGI Westeel SSK","") ->  | L19: 3 | N19: =INDEX(Tables!$F$8:$F$10,Tables!L19) ->  | V19: 24' Upgrade 1 | W19: 212024U1
L20: 8 | N20: =INDEX(Tables!$F$13:$F$20,Tables!L20) ->  | V20: 24' EasyDry Uprgrade 1 | W20: 212024U1-ED
L21: 17 | N21: =INDEX(Tables!$A$2:$A$18,Tables!L21) ->  | V21: 27' Upgrade 1 | W21: 212027U1
L22: 15 | N22: =INDEX(Tables!$H$2:$H$16,Tables!L22) ->  | V22: 30' Upgrade 1 | W22: 212030U1
L23: 4 | N23: =INDEX(Tables!$J$2:$J$5,Tables!L23) ->  | V23: 33' Upgrade 1 | W23: 212033U1
L24: 4 | N24: =INDEX(Tables!$F$2:$F$5,Tables!L24) ->  | V24: 36' Upgrade 1 | W24: 212036U1
V25: 39' Upgrade 1 | W25: 212039U1
A26: (Rs, psf) Max Roof Snow Load @ Standard Peak Load | G26: (U, psf) Ultimate FEA Roof Snow Load Capacities @ Standard Peak Load | M26: Peak Loads | V26: 42' Upgrade 1 | W26: 212042U1
A27: DIAMETER | B27: STD | C27: UP1 | D27: UP2 | E27: UP3 | G27: DIAMETER | H27: STD | I27: UP1 | J27: UP2 | K27: UP3 | M27: DIAMETER | N27: STD | O27: HR | P27: STDSTRUCTURAL | Q27: HRSTRUCTURAL | V27: 45' Upgrade 1 | W27: 212045U1
A28: 15 | B28: 45 | C28: N/A | D28: N/A | E28: N/A | G28: 15 | H28: 75.48 | I28: N/A | J28: N/A | K28: N/A | M28: 15 | N28: 4000 | O28: 8000 | P28: N/A | Q28: N/A | V28: 48' Upgrade 1 | W28: 212048U1
A29: 16 | B29: 45 | C29: N/A | D29: N/A | E29: N/A | G29: 16 | H29: 75.48 | I29: N/A | J29: N/A | K29: N/A | M29: 16 | N29: 4000 | O29: 8000 | P29: N/A | Q29: N/A | V29: 51' Upgrade 1 | W29: 212051U1
A30: 18 | B30: 45 | C30: N/A | D30: N/A | E30: N/A | G30: 18 | H30: 75.48 | I30: N/A | J30: N/A | K30: N/A | M30: 18 | N30: 4000 | O30: 8000 | P30: N/A | Q30: N/A | V30: 54' Upgrade 1 | W30: 212054U1
A31: 21 | B31: 30 | C31: 49 | D31: N/A | E31: N/A | G31: 21 | H31: 51.55 | I31: 81.67 | J31: N/A | K31: N/A | M31: 21 | N31: 4000 | O31: 8000 | P31: N/A | Q31: N/A | V31: 30' Upgrade 2 | W31: 212030U2
A32: 24 | B32: 21 | C32: 40 | D32: N/A | E32: N/A | G32: 24 | H32: 36.58 | I32: 67.84 | J32: N/A | K32: N/A | M32: 24 | N32: 4000 | O32: 8000 | P32: N/A | Q32: N/A | V32: 30' EasyDry Upgrade 2 | W32: 212030U2-ED
A33: 27 | B33: 24 | C33: 39 | D33: N/A | E33: N/A | G33: 27 | H33: 40.56 | I33: 65.17 | J33: N/A | K33: N/A | M33: 27 | N33: 5000 | O33: 10000 | P33: N/A | Q33: N/A | V33: 33' Upgrade 2 | W33: 212033U2
A34: 30 | B34: 20 | C34: 32 | D34: 40 | E34: N/A | G34: 30 | H34: 34.58 | I34: 53.53 | J34: 67.17 | K34: N/A | M34: 30 | N34: 5000 | O34: 10000 | P34: N/A | Q34: N/A | V34: 36' Upgrade 2 | W34: 212036U2
A35: 33 | B35: 23 | C35: 33 | D35: 44 | E35: N/A | G35: 33 | H35: 39.91 | I35: 56.53 | J35: 73.82 | K35: N/A | M35: 33 | N35: 5000 | O35: 10000 | P35: N/A | Q35: N/A | V35: 36' EasyDry Upgrade 2 | W35: 212036U2-ED
A36: 36 | B36: 24 | C36: 30 | D36: 38 | E36: N/A | G36: 36 | H36: 41.23 | I36: 51.55 | J36: 64.85 | K36: N/A | M36: 36 | N36: 5000 | O36: 10000 | P36: N/A | Q36: N/A | V36: 39' Upgrade 2 | W36: 212039U2
A37: 39 | B37: 22 | C37: 27 | D37: 36 | E37: N/A | G37: 39 | H37: 37.24 | I37: 45.22 | J37: 61.52 | K37: N/A | M37: 39 | N37: 5000 | O37: 10000 | P37: N/A | Q37: N/A | V37: 42' Upgrade 2 | W37: 212042U2
A38: 42 | B38: 19 | C38: 24 | D38: 34 | E38: N/A | G38: 42 | H38: 33.26 | I38: 41.57 | J38: 58.2 | K38: N/A | M38: 42 | N38: 5000 | O38: 10000 | P38: N/A | Q38: N/A | V38: 45' Upgrade 2 | W38: 212045U2
A39: 45 | B39: 16 | C39: 23 | D39: 32 | E39: N/A | G39: 45 | H39: 28.27 | I39: 39.91 | J39: 53.87 | K39: N/A | M39: 45 | N39: 5000 | O39: 10000 | P39: N/A | Q39: N/A | V39: 48' Upgrade 2 | W39: 212048U2
A40: 48 | B40: 21 | C40: 26 | D40: 33 | E40: 39 | G40: 48 | H40: 35.9 | I40: 44.23 | J40: 55.53 | K40: 73.16 | M40: 48 | N40: 5000 | O40: 10000 | P40: 20000 | Q40: 60000 | V40: 48' Structural Roof | W40: 212598
A41: 51 | B41: 20 | C41: 28 | D41: 39 | E41: N/A | G41: 51 | H41: 34.25 | I41: 48.22 | J41: 73.16 | K41: N/A | M41: 51 | N41: 8000 | O41: 12000 | P41: 20000 | Q41: 60000 | V41: 51' Structural Roof | W41: 212599
A42: 54 | B42: 17 | C42: 27 | D42: 39 | E42: N/A | G42: 54 | H42: 29.93 | I42: 46.26 | J42: 73.16 | K42: N/A | M42: 54 | N42: 8000 | O42: 12000 | P42: 20000 | Q42: 60000 | V42: 54' Structural Roof | W42: 212610
A43: 60 | B43: 39 | C43: N/A | D43: N/A | E43: N/A | G43: 60 | H43: 73.16 | I43: N/A | J43: N/A | K43: N/A | M43: 60 | N43: N/A | O43: N/A | P43: 20000 | Q43: 60000
A45: (Rs, psf) Max Roof Snow Load @ Upgraded Peak Load | G45: (U, psf) Ultimate FEA Roof Snow Load Capacities @ Upgraded Peak Load
A46: DIAMETER | B46: STD | C46: UP1 | D46: UP2 | E46: UP3 | G46: DIAMETER | H46: STD | I46: UP1 | J46: UP2 | K46: UP3 | O46: Rs*Rlf*Sif <= U*Rfs | P46: - this can be rearranged to give the maximum roof snow load capacity of the roof: Rs = U*Rfs/(Rlf*Sif)
A47: 15 | B47: 29 | C47: N/A | D47: N/A | E47: N/A | G47: 15 | H47: 58.91 | I47: N/A | J47: N/A | K47: N/A | P47: Rs = | Q47: the maximum roof snow load capacity of the roof
A48: 16 | B48: 29 | C48: N/A | D48: N/A | E48: N/A | G48: 16 | H48: 58.91 | I48: N/A | J48: N/A | K48: N/A | P48: U = | Q48: the ultimate roof snow load capacity as found by our FEA models
A49: 18 | B49: 29 | C49: N/A | D49: N/A | E49: N/A | G49: 18 | H49: 58.91 | I49: N/A | J49: N/A | K49: N/A | O49: 0.9 | P49: = Rfs = | Q49: the roof steel resistance factor. We use 0.9 following CSA S136
A50: 21 | B50: 24 | C50: 40 | D50: N/A | E50: N/A | G50: 21 | H50: 49.55 | I50: 81.8 | J50: N/A | K50: N/A | O50: 1.5 | P50: = Rlf = | Q50: the roof snow load factor. We use 1.5 as per NBCC 2015 load combination 3
A51: 24 | B51: 17 | C51: 27 | D51: N/A | E51: N/A | G51: 24 | H51: 34.92 | I51: 55.54 | J51: N/A | K51: N/A | O51: 0.8 | P51: = Sif = | Q51: the snow load importance factor (Occupancy). We use 0.8 as per NBCC 4.1.6.2
A52: 27 | B52: 19 | C52: 28 | D52: N/A | E52: N/A | G52: 27 | H52: 38.24 | I52: 56.53 | J52: N/A | K52: N/A
A53: 30 | B53: 15 | C53: 24 | D53: 33 | E53: N/A | G53: 30 | H53: 31.26 | I53: 48.17 | J53: 67.84 | K53: N/A
A54: 33 | B54: 18 | C54: 24 | D54: 36 | E54: N/A | G54: 33 | H54: 37.91 | I54: 48.22 | J54: 72.78 | K54: N/A
A55: 36 | B55: 18 | C55: 23 | D55: 31 | E55: N/A | G55: 36 | H55: 36.9 | I55: 46.38 | J55: 63.19 | K55: N/A
A56: 39 | B56: 16 | C56: 21 | D56: 30 | E56: N/A | G56: 39 | H56: 33.51 | I56: 42.9 | J56: 60.52 | K56: N/A
A57: 42 | B57: 14 | C57: 19 | D57: 27 | E57: N/A | G57: 42 | H57: 29.93 | I57: 39.91 | J57: 55.29 | K57: N/A
A58: 45 | B58: 13 | C58: 18 | D58: 25 | E58: N/A | G58: 45 | H58: 26.27 | I58: 36.58 | J58: 50.54 | K58: N/A
A59: 48 | B59: 16 | C59: 21 | D59: 26 | E59: 38 | G59: 48 | H59: 33.26 | I59: 42.9 | J59: 52.54 | K59: 71.5
A60: 51 | B60: 14 | C60: 21 | D60: 38 | E60: N/A | G60: 51 | H60: 29.93 | I60: 43.32 | J60: 71.5 | K60: N/A
A61: 54 | B61: 13 | C61: 20 | D61: 38 | E61: N/A | G61: 54 | H61: 26.27 | I61: 40.9 | J61: 71.5 | K61: N/A
A62: 60 | B62: 38 | C62: N/A | D62: N/A | E62: N/A | G62: 60 | H62: 71.5 | I62: N/A | J62: N/A | K62: N/A
A64: Left Over Roof Snow Load @ Standard Peak Load With: RS = U*Rfs/(Rlf*Sif)-RSL
A66: Rib Caps | C66: Cable Load: | D66: =Calculations!$B$13 -> PRM = | E66: =Calculations!$C$13 -> 0
B67: DIAMETER | C67: STD | D67: UP1 | E67: UP2 | F67: UP3
B68: 15 | C68: =B28-RSL ->  | D68: N/A | E68: N/A | F68: N/A
B69: 16 | D69: N/A | E69: N/A | F69: =M70 -> 0
B70: 18 | D70: N/A | E70: N/A | F70: N/A
B71: 21 | D71: =C31-RSL ->  | E71: N/A | F71: N/A
B72: 24 | E72: N/A | F72: N/A
B73: 27 | E73: N/A | F73: N/A
B74: 30 | E74: =D34-RSL ->  | F74: N/A
B75: 33 | F75: N/A
B76: 36 | F76: N/A
B77: 39 | F77: N/A
B78: 42 | F78: N/A
B79: 45 | F79: N/A
B80: 48 | F80: N/A
B81: 51 | E81: N/A | F81: N/A
B82: 54 | E82: N/A | F82: N/A
B83: 60 | C83: N/A | D83: N/A | E83: N/A | F83: N/A
A85: Hanging Bracket Support System | C85: Cable Load: | D85: =Calculations!$B$13 -> PRM = | E85: =Calculations!$C$13 -> 0
B86: DIAMETER | C86: STD | D86: UP1 | E86: UP2 | F86: UP3
B87: 15 | C87: N/A | D87: N/A | E87: N/A | F87: N/A
B88: 16 | C88: N/A | D88: N/A | E88: N/A | F88: N/A
B89: 18 | C89: N/A | D89: N/A | E89: N/A | F89: N/A
B90: 21 | C90: N/A | D90: N/A | E90: N/A | F90: N/A
B91: 24 | C91: N/A | D91: N/A | E91: N/A | F91: N/A
B92: 27 | C92: N/A | D92: N/A | E92: N/A | F92: N/A
B93: 30 | C93: N/A | D93: N/A | E93: N/A | F93: N/A
B94: 33 | C94: N/A | D94: N/A | E94: N/A | F94: N/A
B95: 36 | C95: N/A | D95: N/A | E95: N/A | F95: N/A
B96: 39 | C96: N/A | D96: N/A | E96: N/A | F96: N/A
B97: 42 | C97: N/A | D97: N/A | E97: N/A | F97: N/A
B98: 45 | C98: N/A | D98: N/A | E98: N/A | F98: N/A
B99: 48 | C99: N/A | D99: N/A | E99: N/A | F99: =E40-RSL -> 
B100: 51 | C100: N/A | D100: N/A | E100: =D41-RSL ->  | F100: N/A
B101: 54 | C101: N/A | D101: N/A | E101: =D42-RSL ->  | F101: N/A
B102: 60 | C102: =B43-RSL ->  | D102: N/A | E102: N/A | F102: N/A
A104: Left Over Roof Snow Load @ Upgraded Peak Load With: RS = U*Rfs/(Rlf*Sif)-RSL
A106: Ribs Caps | C106: Cable Load: | D106: =Calculations!$B$13 -> PRM = | E106: =Calculations!$C$13 -> 0
B107: DIAMETER | C107: STD | D107: UP1 | E107: UP2 | F107: UP3
B108: 15 | C108: =B47-RSL ->  | D108: N/A | E108: N/A | F108: N/A
B109: 16 | D109: N/A | E109: N/A | F109: N/A
B110: 18 | D110: N/A | E110: N/A | F110: N/A
B111: 21 | D111: =C50-RSL ->  | E111: N/A | F111: N/A
B112: 24 | E112: N/A | F112: N/A
B113: 27 | E113: N/A | F113: N/A
B114: 30 | E114: =D53-RSL ->  | F114: N/A
B115: 33 | F115: N/A
B116: 36 | F116: N/A
B117: 39 | F117: N/A
B118: 42 | F118: N/A
B119: 45 | F119: N/A
B120: 48 | F120: N/A
B121: 51 | E121: N/A | F121: N/A
B122: 54 | E122: N/A | F122: N/A
B123: 60 | C123: N/A | D123: N/A | E123: N/A | F123: N/A
A125: Hanging Bracket Support System | C125: Cable Load: | D125: =Calculations!$B$13 -> PRM = | E125: =Calculations!$C$13 -> 0
B126: DIAMETER | C126: STD | D126: UP1 | E126: UP2 | F126: UP3
B127: 15 | C127: N/A | D127: N/A | E127: N/A | F127: N/A
B128: 16 | C128: N/A | D128: N/A | E128: N/A | F128: N/A
B129: 18 | C129: N/A | D129: N/A | E129: N/A | F129: N/A
B130: 21 | C130: N/A | D130: N/A | E130: N/A | F130: N/A
B131: 24 | C131: N/A | D131: N/A | E131: N/A | F131: N/A
B132: 27 | C132: N/A | D132: N/A | E132: N/A | F132: N/A
B133: 30 | C133: N/A | D133: N/A | E133: N/A | F133: N/A
B134: 33 | C134: N/A | D134: N/A | E134: N/A | F134: N/A
B135: 36 | C135: N/A | D135: N/A | E135: N/A | F135: N/A
B136: 39 | C136: N/A | D136: N/A | E136: N/A | F136: N/A
B137: 42 | C137: N/A | D137: N/A | E137: N/A | F137: N/A
B138: 45 | C138: N/A | D138: N/A | E138: N/A | F138: N/A
B139: 48 | C139: N/A | D139: N/A | E139: N/A | F139: =E59-RSL -> 
B140: 51 | C140: N/A | D140: N/A | E140: =D60-RSL ->  | F140: N/A
B141: 54 | C141: N/A | D141: N/A | E141: =D61-RSL ->  | F141: N/A
B142: 60 | C142: =B62-RSL ->  | D142: N/A | E142: N/A | F142: N/A

Sheet CDN RSL & WS (hidden)
B1: Location | C1: Latitude | D1: Longitude | E1: Distance Between (km) | F1: Roof (psf) | G1: Wind (kpa)
A2: Location In Question | B2: =Main!D16 -> 0 | C2: =ABS(LAT) -> 0 | D2: =ABS(LONG) -> 0 | E2: N/A | F2: =IF(OR(C2=0,D2=0),NA(),F3) ->  | G2: =IF(OR(C2=0,D2=0),NA(),G3) -> 
A3: 1st Nearest NBCC Location | B3: =VLOOKUP("yes",$A$24:$H$684,2,FALSE) -> Cape Race | C3: =VLOOKUP("yes",$A$24:$H$684,3,FALSE) -> 46.66667 | D3: =VLOOKUP("yes",$A$24:$H$684,4,FALSE) -> 53.06667 | E3: =VLOOKUP("yes",$A$24:$H$684,5,FALSE) -> 7299.646606 | F3: =VLOOKUP("yes",$A$24:$H$684,8,FALSE) -> 32.19140944 | G3: =VLOOKUP("yes",$A$24:$I$684,9,FALSE) -> 1.05
A4: 2nd Nearest NBCC Location | B4: =VLOOKUP("yes",$L$24:$Q$684,2,FALSE) -> St. John's | C4: =VLOOKUP("yes",$L$24:$Q$684,3,FALSE) -> 47.56054 | D4: =VLOOKUP("yes",$L$24:$Q$684,4,FALSE) -> 52.71283 | E4: =VLOOKUP("yes",$L$24:$Q$684,5,FALSE) -> 7324.417177 | F4: =VLOOKUP("yes",$L$24:$Q$684,6,FALSE) -> 37.53807952 | G4: =VLOOKUP("yes",$L$24:$R$684,7,FALSE) -> 0.78
A23: 1st Nearest? | B23: Location | C23: Latitude | D23: Longitude | E23: Dist. Between 1st (km) | F23: Ss | G23: Sr | H23: Roof (psf) | I23: Wind 1/50 (kpa) | J23: Wind Speed (mph) | L23: 2nd Nearest? | M23: Location | N23: Latitude | O23: Longitude | P23: Dist Between 2nd (km) | Q23: Roof (psf) | R23: Wind 1/50 (kpa) | S23: Wind Speed (mph)
A24: =IF(E24=MIN($E$24:$E$684),"yes","") ->  | B24: Ailsa Craig | C24: 43.117 | D24: 81.5338 | E24: =ACOS(SIN(RADIANS(ABS(LAT)))*SIN(RADIANS(C24))+COS(RADIANS(ABS(LAT)))*COS(RADIANS(C24))*COS(RADIANS(D24-ABS(LONG))))*6371 -> 9321.533669 | F24: 2.2 | G24: 0.4 | H24: =0.8*((F24*0.8*2/3+G24)*20.88543) -> 26.28779456 | I24: 0.5 | J24: =ROUNDUP(SQRT(2*I24/0.00064645)*2.236936141,0) -> 88 | L24: =IF(P24=MIN($P$24:$P$684),"yes","") ->  | M24: =B24 -> Ailsa Craig | N24: =C24 -> 43.117 | O24: =D24 -> 81.5338 | P24: =IF(A24<>"yes",E24,"") -> 9321.533669 | Q24: =H24 -> 26.28779456 | R24: 0.5 | S24: =ROUNDUP(SQRT(2*R24/0.00064645)*2.236936141,0) -> 88
A25: =IF(E25=MIN($E$24:$E$684),"yes","") ->  | B25: Ajax | C25: 43.85 | D25: 79.0167 | E25: 9129.411211 | F25: 1 | G25: 0.4 | H25: =0.8*((F25*0.8*2/3+G25)*20.88543) -> 15.5944544 | I25: 0.48 | J25: =ROUNDUP(SQRT(2*I25/0.00064645)*2.236936141,0) -> 87 | L25: =IF(P25=MIN($P$24:$P$684),"yes","") ->  | M25: =B25 -> Ajax | N25: =C25 -> 43.85 | O25: =D25 -> 79.0167 | P25: =IF(A25<>"yes",E25,"") -> 9129.411211 | Q25: =H25 -> 15.5944544 | R25: 0.48 | S25: =ROUNDUP(SQRT(2*R25/0.00064645)*2.236936141,0) -> 87
B26: Alexandria | C26: 45.3112 | D26: 74.6367 | E26: 8813.524028 | F26: 2.4 | G26: 0.4 | H26: 28.07001792 | I26: 0.4 | J26: 79 | M26: Alexandria | N26: 45.3112 | O26: 74.6367 | P26: 8813.524028 | Q26: 28.07001792 | R26: 0.4 | S26: 79
B27: Alliston | C27: 44.1499 | D27: 79.8632 | E27: 9200.841754 | F27: 2 | G27: 0.4 | H27: 24.5055712 | I27: 0.36 | J27: 75 | M27: Alliston | N27: 44.1499 | O27: 79.8632 | P27: 9200.841754 | Q27: 24.5055712 | R27: 0.36 | S27: 75
B28: Almonte | C28: 45.2263 | D28: 76.1945 | E28: 8931.683936 | F28: 2.5 | G28: 0.4 | H28: 28.9611296 | I28: 0.41 | J28: 80 | M28: Almonte | N28: 45.2263 | O28: 76.1945 | P28: 8931.683936 | Q28: 28.9611296 | R28: 0.41 | S28: 80
B29: Armstrong | C29: 47.7083 | D29: 79.825 | E29: 9248.412998 | F29: 2.7 | G29: 0.4 | H29: 30.74335296 | I29: 0.3 | J29: 69 | M29: Armstrong | N29: 47.7083 | O29: 79.825 | P29: 9248.412998 | Q29: 30.74335296 | R29: 0.3 | S29: 69
B30: Arnprior | C30: 45.4333 | D30: 76.35 | E30: 8947.600149 | F30: 2.5 | G30: 0.4 | H30: 28.9611296 | I30: 0.37 | J30: 76 | M30: Arnprior | N30: 45.4333 | O30: 76.35 | P30: 8947.600149 | Q30: 28.9611296 | R30: 0.37 | S30: 76
B31: Atikokan | C31: 48.75 | D31: 91.6167 | E31: 10126.06434 | F31: 2.4 | G31: 0.3 | H31: 26.39918352 | I31: 0.3 | J31: 69 | M31: Atikokan | N31: 48.75 | O31: 91.6167 | P31: 10126.06434 | Q31: 26.39918352 | R31: 0.3 | S31: 69
B32: Attawapiskat | C32: 52.9331 | D32: 82.4 | E32: 9499.125926 | F32: 2.8 | G32: 0.3 | H32: 29.96363024 | I32: 0.41 | J32: 80 | M32: Attawapiskat | N32: 52.9331 | O32: 82.4 | P32: 9499.125926 | Q32: 29.96363024 | R32: 0.41 | S32: 80
B33: Aurora | C33: 44 | D33: 79.4667 | E33: 9167.321321 | F33: 2 | G33: 0.4 | H33: 24.5055712 | I33: 0.44 | J33: 83 | M33: Aurora | N33: 44 | O33: 79.4667 | P33: 9167.321321 | Q33: 24.5055712 | R33: 0.44 | S33: 83
B34: Bancroft | C34: 45.05 | D34: 77.85 | E34: 9056.674453 | F34: 3.1 | G34: 0.4 | H34: 34.30779968 | I34: 0.32 | J34: 71 | M34: Bancroft | N34: 45.05 | O34: 77.85 | P34: 9056.674453 | Q34: 34.30779968 | R34: 0.32 | S34: 71
B35: Barrie | C35: 44.38936 | D35: 79.69033 | E35: 9190.51098 | F35: 2.5 | G35: 0.4 | H35: 28.9611296 | I35: 0.36 | J35: 75 | M35: Barrie | N35: 44.38936 | O35: 79.69033 | P35: 9190.51098 | Q35: 28.9611296 | R35: 0.36 | S35: 75
B36: Barriefield | C36: 44.24028 | D36: 76.46312 | E36: 8934.097203 | F36: 2.1 | G36: 0.4 | H36: 25.39668288 | I36: 0.47 | J36: 86 | M36: Barriefield | N36: 44.24028 | O36: 76.46312 | P36: 8934.097203 | Q36: 25.39668288 | R36: 0.47 | S36: 86
B37: Beaverton | C37: 44.42937 | D37: 79.15347 | E37: 9148.802698 | F37: 2.2 | G37: 0.4 | H37: 26.28779456 | I37: 0.36 | J37: 75 | M37: Beaverton | N37: 44.42937 | O37: 79.15347 | P37: 9148.802698 | Q37: 26.28779456 | R37: 0.36 | S37: 75
B38: Belleville | C38: 44.16276 | D38: 77.38323 | E38: 9005.121876 | F38: 1.7 | G38: 0.4 | H38: 21.83223616 | I38: 0.43 | J38: 82 | M38: Belleville | N38: 44.16276 | O38: 77.38323 | P38: 9005.121876 | Q38: 21.83223616 | R38: 0.43 | S38: 82
B39: Belmont | C39: 42.8814 | D39: 81.08752 | E39: 9282.720274 | F39: 1.7 | G39: 0.4 | H39: 21.83223616 | I39: 0.47 | J39: 86 | M39: Belmont | N39: 42.8814 | O39: 81.08752 | P39: 9282.720274 | Q39: 21.83223616 | R39: 0.47 | S39: 86
B40: Kitchenuhmaykoosib | C40: 53.82389 | D40: 89.88083 | E40: 9999.721687 | F40: 3.2 | G40: 0.2 | H40: 31.85724256 | I40: 0.42 | J40: 81 | M40: Kitchenuhmaykoosib | N40: 53.82389 | O40: 89.88083 | P40: 9999.721687 | Q40: 31.85724256 | R40: 0.42 | S40: 81
B41: CFB Borden | C41: 44.27176 | D41: 79.91191 | E41: 9206.366648 | F41: 2.2 | G41: 0.4 | H41: 26.28779456 | I41: 0.36 | J41: 75 | M41: CFB Borden | N41: 44.27176 | O41: 79.91191 | P41: 9206.366648 | Q41: 26.28779456 | R41: 0.36 | S41: 75
B42: Bracebridge | C42: 45.03896 | D42: 79.30788 | E42: 9169.885516 | F42: 3.1 | G42: 0.4 | H42: 34.30779968 | I42: 0.35 | J42: 74 | M42: Bracebridge | N42: 45.03896 | O42: 79.30788 | P42: 9169.885516 | Q42: 34.30779968 | R42: 0.35 | S42: 74
B43: Bradford | C43: 44.12022 | D43: 79.5623 | E43: 9176.604257 | F43: 2.1 | G43: 0.4 | H43: 25.39668288 | I43: 0.36 | J43: 75 | M43: Bradford | N43: 44.12022 | O43: 79.5623 | P43: 9176.604257 | Q43: 25.39668288 | R43: 0.36 | S43: 75
B44: Brampton | C44: 43.68333 | D44: 79.76667 | E44: 9186.753831 | F44: 1.3 | G44: 0.4 | H44: 18.26778944 | I44: 0.44 | J44: 83 | M44: Brampton | N44: 43.68333 | O44: 79.76667 | P44: 9186.753831 | Q44: 18.26778944 | R44: 0.44 | S44: 83
B45: Brantford | C45: 43.13939 | D45: 80.26443 | E45: 9219.404826 | F45: 1.3 | G45: 0.4 | H45: 18.26778944 | I45: 0.42 | J45: 81 | M45: Brantford | N45: 43.13939 | O45: 80.26443 | P45: 9219.404826 | Q45: 18.26778944 | R45: 0.42 | S45: 81
B46: Brighton | C46: 44.04226 | D46: 77.73688 | E46: 9031.000069 | F46: 1.6 | G46: 0.4 | H46: 20.94112448 | I46: 0.48 | J46: 87 | M46: Brighton | N46: 44.04226 | O46: 77.73688 | P46: 9031.000069 | Q46: 20.94112448 | R46: 0.48 | S46: 87
B47: Brockville | C47: 44.58952 | D47: 75.68429 | E47: 8879.789553 | F47: 2.2 | G47: 0.4 | H47: 26.28779456 | I47: 0.44 | J47: 83 | M47: Brockville | N47: 44.58952 | O47: 75.68429 | P47: 8879.789553 | Q47: 26.28779456 | R47: 0.44 | S47: 83
B48: Burk's Falls | C48: 45.61988 | D48: 79.40875 | E48: 9186.256808 | F48: 2.7 | G48: 0.4 | H48: 30.74335296 | I48: 0.35 | J48: 74 | M48: Burk's Falls | N48: 45.61988 | O48: 79.40875 | P48: 9186.256808 | Q48: 30.74335296 | R48: 0.35 | S48: 74
B49: Burlington | C49: 43.32552 | D49: 79.79903 | E49: 9184.44481 | F49: 1.1 | G49: 0.4 | H49: 16.48556608 | I49: 0.46 | J49: 85 | M49: Burlington | N49: 43.32552 | O49: 79.79903 | P49: 9184.44481 | Q49: 16.48556608 | R49: 0.46 | S49: 85
B50: Cambridge | C50: 43.36162 | D50: 80.31443 | E50: 9226.304464 | F50: 1.6 | G50: 0.4 | H50: 20.94112448 | I50: 0.36 | J50: 75 | M50: Cambridge | N50: 43.36162 | O50: 80.31443 | P50: 9226.304464 | Q50: 20.94112448 | R50: 0.36 | S50: 75
B51: Campbellford | C51: 44.30129 | D51: 77.7988 | E51: 9040.185379 | F51: 1.7 | G51: 0.4 | H51: 21.83223616 | I51: 0.41 | J51: 80 | M51: Campbellford | N51: 44.30129 | O51: 77.7988 | P51: 9040.185379 | Q51: 21.83223616 | R51: 0.41 | S51: 80
B52: Cannington | C52: 44.35022 | D52: 79.03866 | E52: 9138.586266 | F52: 2.2 | G52: 0.4 | H52: 26.28779456 | I52: 0.36 | J52: 75 | M52: Cannington | N52: 44.35022 | O52: 79.03866 | P52: 9138.586266 | Q52: 26.28779456 | R52: 0.36 | S52: 75
B53: Carleton Place | C53: 45.1406 | D53: 76.14655 | E53: 8926.342639 | F53: 2.5 | G53: 0.4 | H53: 28.9611296 | I53: 0.41 | J53: 80 | M53: Carleton Place | N53: 45.1406 | O53: 76.14655 | P53: 8926.342639 | Q53: 28.9611296 | R53: 0.41 | S53: 80
B54: Cavan | C54: 44.19967 | D54: 78.46872 | E54: 9091.339641 | F54: 2 | G54: 0.4 | H54: 24.5055712 | I54: 0.44 | J54: 83 | M54: Cavan | N54: 44.19967 | O54: 78.46872 | P54: 9091.339641 | Q54: 24.5055712 | R54: 0.44 | S54: 83
B55: Centralia | C55: 43.28391 | D55: 81.4722 | E55: 9318.454715 | F55: 2.3 | G55: 0.4 | H55: 27.17890624 | I55: 0.49 | J55: 88 | M55: Centralia | N55: 43.28391 | O55: 81.4722 | P55: 9318.454715 | Q55: 27.17890624 | R55: 0.49 | S55: 88
B56: Chapleau | C56: 47.84449 | D56: 83.40437 | E56: 9515.92379 | F56: 3.6 | G56: 0.4 | H56: 38.76335808 | I56: 0.3 | J56: 69 | M56: Chapleau | N56: 47.84449 | O56: 83.40437 | P56: 9515.92379 | Q56: 38.76335808 | R56: 0.3 | S56: 69
B57: Chatham | C57: 42.4048 | D57: 82.19104 | E57: 9367.285314 | F57: 1 | G57: 0.4 | H57: 15.5944544 | I57: 0.43 | J57: 82 | M57: Chatham | N57: 42.4048 | O57: 82.19104 | P57: 9367.285314 | Q57: 15.5944544 | R57: 0.43 | S57: 82
B58: Chesley | C58: 44.30276 | D58: 81.09671 | E58: 9300.437455 | F58: 2.8 | G58: 0.4 | H58: 31.63446464 | I58: 0.48 | J58: 87 | M58: Chesley | N58: 44.30276 | O58: 81.09671 | P58: 9300.437455 | Q58: 31.63446464 | R58: 0.48 | S58: 87
B59: Clinton | C59: 43.61728 | D59: 81.5394 | E59: 9327.638405 | F59: 2.6 | G59: 0.4 | H59: 29.85224128 | I59: 0.49 | J59: 88 | M59: Clinton | N59: 43.61728 | O59: 81.5394 | P59: 9327.638405 | Q59: 29.85224128 | R59: 0.49 | S59: 88
B60: Coboconk | C60: 44.65778 | D60: 78.79857 | E60: 9124.374517 | F60: 2.5 | G60: 0.4 | H60: 28.9611296 | I60: 0.35 | J60: 74 | M60: Coboconk | N60: 44.65778 | O60: 78.79857 | P60: 9124.374517 | Q60: 28.9611296 | R60: 0.35 | S60: 74
B61: Cobourg | C61: 43.95934 | D61: 78.16774 | E61: 9063.73786 | F61: 1.2 | G61: 0.4 | H61: 17.37667776 | I61: 0.49 | J61: 88 | M61: Cobourg | N61: 43.95934 | O61: 78.16774 | P61: 9063.73786 | Q61: 17.37667776 | R61: 0.49 | S61: 88
B62: Cochrane | C62: 49.06503 | D62: 81.02993 | E62: 9355.556623 | F62: 2.8 | G62: 0.3 | H62: 29.96363024 | I62: 0.35 | J62: 74 | M62: Cochrane | N62: 49.06503 | O62: 81.02993 | P62: 9355.556623 | Q62: 29.96363024 | R62: 0.35 | S62: 74
B63: Colborne | C63: 44.005556 | D63: 77.888889 | E63: 9042.413488 | F63: 1.6 | G63: 0.4 | H63: 20.94112448 | I63: 0.49 | J63: 88 | M63: Colborne | N63: 44.005556 | O63: 77.888889 | P63: 9042.413488 | Q63: 20.94112448 | R63: 0.49 | S63: 88
B64: Collingwood | C64: 44.50077 | D64: 80.2169 | E64: 9233.519528 | F64: 2.7 | G64: 0.4 | H64: 30.74335296 | I64: 0.39 | J64: 78 | M64: Collingwood | N64: 44.50077 | O64: 80.2169 | P64: 9233.519528 | Q64: 30.74335296 | R64: 0.39 | S64: 78
B65: Cornwall | C65: 45.02128 | D65: 74.73035 | E65: 8814.584918 | F65: 2.2 | G65: 0.4 | H65: 26.28779456 | I65: 0.41 | J65: 80 | M65: Cornwall | N65: 45.02128 | O65: 74.73035 | P65: 8814.584918 | Q65: 26.28779456 | R65: 0.41 | S65: 80
B66: Corunna | C66: 42.88272 | D66: 82.45096 | E66: 9393.29047 | F66: 1 | G66: 0.4 | H66: 15.5944544 | I66: 0.47 | J66: 86 | M66: Corunna | N66: 42.88272 | O66: 82.45096 | P66: 9393.29047 | Q66: 15.5944544 | R66: 0.47 | S66: 86
B67: Deep River | C67: 46.09766 | D67: 77.49334 | E67: 9047.211702 | F67: 2.5 | G67: 0.4 | H67: 28.9611296 | I67: 0.35 | J67: 74 | M67: Deep River | N67: 46.09766 | O67: 77.49334 | P67: 9047.211702 | Q67: 28.9611296 | R67: 0.35 | S67: 74
B68: Deseronto | C68: 44.1954 | D68: 77.04873 | E68: 8979.34139 | F68: 1.9 | G68: 0.4 | H68: 23.61445952 | I68: 0.43 | J68: 82 | M68: Deseronto | N68: 44.1954 | O68: 77.04873 | P68: 8979.34139 | Q68: 23.61445952 | R68: 0.43 | S68: 82
B69: Dorchester | C69: 42.98521 | D69: 81.04913 | E69: 9280.841341 | F69: 1.9 | G69: 0.4 | H69: 23.61445952 | I69: 0.47 | J69: 86 | M69: Dorchester | N69: 42.98521 | O69: 81.04913 | P69: 9280.841341 | Q69: 23.61445952 | R69: 0.47 | S69: 86
B70: Dorion | C70: 48.78572 | D70: 88.56199 | E70: 9902.195615 | F70: 2.8 | G70: 0.4 | H70: 31.63446464 | I70: 0.39 | J70: 78 | M70: Dorion | N70: 48.78572 | O70: 88.56199 | P70: 9902.195615 | Q70: 31.63446464 | R70: 0.39 | S70: 78
B71: Dresden | C71: 42.58956 | D71: 82.18331 | E71: 9368.550474 | F71: 1 | G71: 0.4 | H71: 15.5944544 | I71: 0.43 | J71: 82 | M71: Dresden | N71: 42.58956 | O71: 82.18331 | P71: 9368.550474 | Q71: 15.5944544 | R71: 0.43 | S71: 82
B72: Dryden | C72: 49.78009 | D72: 92.83696 | E72: 10211.19178 | F72: 2.4 | G72: 0.3 | H72: 26.39918352 | I72: 0.3 | J72: 69 | M72: Dryden | N72: 49.78009 | O72: 92.83696 | P72: 10211.19178 | Q72: 26.39918352 | R72: 0.3 | S72: 69
B73: Dundalk | C73: 44.16767 | D73: 80.39357 | E73: 9243.080942 | F73: 3.2 | G73: 0.4 | H73: 35.19891136 | I73: 0.42 | J73: 81 | M73: Dundalk | N73: 44.16767 | O73: 80.39357 | P73: 9243.080942 | Q73: 35.19891136 | R73: 0.42 | S73: 81
B74: Dunnville | C74: 42.90354 | D74: 79.617 | E74: 9164.002834 | F74: 2 | G74: 0.4 | H74: 24.5055712 | I74: 0.46 | J74: 85 | M74: Dunnville | N74: 42.90354 | O74: 79.617 | P74: 9164.002834 | Q74: 24.5055712 | R74: 0.46 | S74: 85
B75: Durham | C75: 44.17631 | D75: 80.81843 | E75: 9276.852572 | F75: 2.8 | G75: 0.4 | H75: 31.63446464 | I75: 0.44 | J75: 83 | M75: Durham | N75: 44.17631 | O75: 80.81843 | P75: 9276.852572 | Q75: 31.63446464 | R75: 0.44 | S75: 83
B76: Dutton | C76: 42.66379 | D76: 81.50271 | E76: 9313.925183 | F76: 1.3 | G76: 0.4 | H76: 18.26778944 | I76: 0.47 | J76: 86 | M76: Dutton | N76: 42.66379 | O76: 81.50271 | P76: 9313.925183 | Q76: 18.26778944 | R76: 0.47 | S76: 86
B77: Earlton | C77: 47.71071 | D77: 79.82464 | E77: 9248.421567 | F77: 3.1 | G77: 0.4 | H77: 34.30779968 | I77: 0.45 | J77: 84 | M77: Earlton | N77: 47.71071 | O77: 79.82464 | P77: 9248.421567 | Q77: 34.30779968 | R77: 0.45 | S77: 84
B78: Edison | C78: 44.30906 | D78: 78.31975 | E78: 9081.320861 | F78: 2.4 | G78: 0.3 | H78: 26.39918352 | I78: 0.31 | J78: 70 | M78: Edison | N78: 44.30906 | O78: 78.31975 | P78: 9081.320861 | Q78: 26.39918352 | R78: 0.31 | S78: 70
B79: Elliot Lake | C79: 46.38618 | D79: 82.65094 | E79: 9444.671006 | F79: 2.9 | G79: 0.4 | H79: 32.52557632 | I79: 0.38 | J79: 77 | M79: Elliot Lake | N79: 46.38618 | O79: 82.65094 | P79: 9444.671006 | Q79: 32.52557632 | R79: 0.38 | S79: 77
B80: Elmvale | C80: 44.58363 | D80: 79.86607 | E80: 9207.050158 | F80: 2.6 | G80: 0.4 | H80: 29.85224128 | I80: 0.36 | J80: 75 | M80: Elmvale | N80: 44.58363 | O80: 79.86607 | P80: 9207.050158 | Q80: 29.85224128 | R80: 0.36 | S80: 75
B81: Embro | C81: 43.1556 | D81: 80.90106 | E81: 9270.926865 | F81: 2 | G81: 0.4 | H81: 24.5055712 | I81: 0.48 | J81: 87 | M81: Embro | N81: 43.1556 | O81: 80.90106 | P81: 9270.926865 | Q81: 24.5055712 | R81: 0.48 | S81: 87
B82: Engelhart | C82: 47.82424 | D82: 79.87383 | E82: 9253.725074 | F82: 2.8 | G82: 0.4 | H82: 31.63446464 | I82: 0.41 | J82: 80 | M82: Engelhart | N82: 47.82424 | O82: 79.87383 | P82: 9253.725074 | Q82: 31.63446464 | R82: 0.41 | S82: 80
B83: Espanola | C83: 46.26572 | D83: 81.77106 | E83: 9376.118236 | F83: 2.3 | G83: 0.4 | H83: 27.17890624 | I83: 0.42 | J83: 81 | M83: Espanola | N83: 46.26572 | O83: 81.77106 | P83: 9376.118236 | Q83: 27.17890624 | R83: 0.42 | S83: 81
B84: Exeter | C84: 43.34575 | D84: 81.47993 | E84: 9319.780125 | F84: 2.4 | G84: 0.4 | H84: 28.07001792 | I84: 0.49 | J84: 88 | M84: Exeter | N84: 43.34575 | O84: 81.47993 | P84: 9319.780125 | Q84: 28.07001792 | R84: 0.49 | S84: 88
B85: Fenelon Falls | C85: 44.53702 | D85: 78.73613 | E85: 9117.623629 | F85: 2.3 | G85: 0.4 | H85: 27.17890624 | I85: 0.36 | J85: 75 | M85: Fenelon Falls | N85: 44.53702 | O85: 78.73613 | P85: 9117.623629 | Q85: 27.17890624 | R85: 0.36 | S85: 75
B86: Fergus | C86: 43.70595 | D86: 80.37783 | E86: 9235.836071 | F86: 2.2 | G86: 0.4 | H86: 26.28779456 | I86: 0.36 | J86: 75 | M86: Fergus | N86: 43.70595 | O86: 80.37783 | P86: 9235.836071 | Q86: 26.28779456 | R86: 0.36 | S86: 75
B87: Forest | C87: 43.1 | D87: 82 | E87: 9359.009625 | F87: 2 | G87: 0.4 | H87: 24.5055712 | I87: 0.48 | J87: 87 | M87: Forest | N87: 43.1 | O87: 82 | P87: 9359.009625 | Q87: 24.5055712 | R87: 0.48 | S87: 87
B88: Fort Erie | C88: 42.90178 | D88: 78.97217 | E88: =ACOS(SIN(RADIANS(ABS(LAT)))*SIN(RADIANS(C88))+COS(RADIANS(ABS(LAT)))*COS(RADIANS(C88))*COS(RADIANS(D88-ABS(LONG))))*6371 -> 9111.885224 | F88: 2.3 | G88: 0.4 | H88: 27.17890624 | I88: 0.46 | J88: 85 | M88: Fort Erie | N88: 42.90178 | O88: 78.97217 | P88: 9111.885224 | Q88: 27.17890624 | R88: 0.46 | S88: 85
A89: =IF(E89=MIN($E$24:$E$684),"yes","") ->  | B89: Fort Erie (Ridgeway) | C89: 42.88361 | D89: 79.05743 | E89: 9118.506434 | F89: 2.3 | G89: 0.4 | H89: =0.8*((F89*0.8*2/3+G89)*20.88543) -> 27.17890624 | I89: 0.46 | J89: =ROUNDUP(SQRT(2*I89/0.00064645)*2.236936141,0) -> 85 | L89: =IF(P89=MIN($P$24:$P$684),"yes","") ->  | M89: =B89 -> Fort Erie (Ridgeway) | N89: =C89 -> 42.88361 | O89: =D89 -> 79.05743 | P89: =IF(A89<>"yes",E89,"") -> 9118.506434 | Q89: =H89 -> 27.17890624 | R89: 0.46 | S89: =ROUNDUP(SQRT(2*R89/0.00064645)*2.236936141,0) -> 85
B90: Fort Frances | C90: 48.60995 | D90: 93.39553 | E90: 10257.10061 | F90: 2.3 | G90: 0.3 | H90: 25.50807184 | I90: 0.31 | J90: 70 | M90: Fort Frances | N90: 48.60995 | O90: 93.39553 | P90: 10257.10061 | Q90: 25.50807184 | R90: 0.31 | S90: 70
B91: Gananoque | C91: 44.33062 | D91: 76.16186 | E91: 8912.140008 | F91: 2.1 | G91: 0.4 | H91: 25.39668288 | I91: 0.47 | J91: 86 | M91: Gananoque | N91: 44.33062 | O91: 76.16186 | P91: 8912.140008 | Q91: 25.39668288 | R91: 0.47 | S91: 86
B92: Geraldton | C92: 49.72677 | D92: 86.94884 | E92: 9788.286044 | F92: 2.9 | G92: 0.4 | H92: 32.52557632 | I92: 0.3 | J92: 69 | M92: Geraldton | N92: 49.72677 | O92: 86.94884 | P92: 9788.286044 | Q92: 32.52557632 | R92: 0.3 | S92: 69
B93: Glencoe | C93: 42.74726 | D93: 81.70945 | E93: 9331.658502 | F93: 1.5 | G93: 0.4 | H93: 20.0500128 | I93: 0.43 | J93: 82 | M93: Glencoe | N93: 42.74726 | O93: 81.70945 | P93: 9331.658502 | Q93: 20.0500128 | R93: 0.43 | S93: 82
B94: Goderich | C94: 43.74283 | D94: 81.71389 | E94: 9343.0103 | F94: 2.4 | G94: 0.4 | H94: 28.07001792 | I94: 0.55 | J94: 93 | M94: Goderich | N94: 43.74283 | O94: 81.71389 | P94: 9343.0103 | Q94: 28.07001792 | R94: 0.55 | S94: 93
B95: Gore Bay | C95: 45.9114 | D95: 82.45978 | E95: 9425.057352 | F95: 2.6 | G95: 0.4 | H95: 29.85224128 | I95: 0.44 | J95: 83 | M95: Gore Bay | N95: 45.9114 | O95: 82.45978 | P95: 9425.057352 | Q95: 29.85224128 | R95: 0.44 | S95: 83
B96: Graham | C96: 49.24955 | D96: 90.5732 | E96: 10049.14828 | F96: 2.6 | G96: 0.3 | H96: 28.18140688 | I96: 0.3 | J96: 69 | M96: Graham | N96: 49.24955 | O96: 90.5732 | P96: 10049.14828 | Q96: 28.18140688 | R96: 0.3 | S96: 69
B97: Gravenhurst | C97: 44.91964 | D97: 79.37418 | E97: 9173.305115 | F97: 2.7 | G97: 0.4 | H97: 30.74335296 | I97: 0.36 | J97: 75 | M97: Gravenhurst | N97: 44.91964 | O97: 79.37418 | P97: 9173.305115 | Q97: 30.74335296 | R97: 0.36 | S97: 75
B98: Grimsby | C98: 43.19421 | D98: 79.56242 | E98: 9163.624166 | F98: 0.9 | G98: 0.4 | H98: 14.70334272 | I98: 0.46 | J98: 85 | M98: Grimsby | N98: 43.19421 | O98: 79.56242 | P98: 9163.624166 | Q98: 14.70334272 | R98: 0.46 | S98: 85
B99: Guelph | C99: 43.5448 | D99: 80.24817 | E99: 9223.37546 | F99: 1.9 | G99: 0.4 | H99: 23.61445952 | I99: 0.36 | J99: 75 | M99: Guelph | N99: 43.5448 | O99: 80.24817 | P99: 9223.37546 | Q99: 23.61445952 | R99: 0.36 | S99: 75
B100: Guthrie | C100: 44.4728 | D100: 79.55002 | E100: 9180.640412 | F100: 2.5 | G100: 0.4 | H100: 28.9611296 | I100: 0.36 | J100: 75 | M100: Guthrie | N100: 44.4728 | O100: 79.55002 | P100: 9180.640412 | Q100: 28.9611296 | R100: 0.36 | S100: 75
B101: Haileybury | C101: 47.44632 | D101: 79.63546 | E101: 9230.459004 | F101: 2.4 | G101: 0.4 | H101: 28.07001792 | I101: 0.44 | J101: 83 | M101: Haileybury | N101: 47.44632 | O101: 79.63546 | P101: 9230.459004 | Q101: 28.07001792 | R101: 0.44 | S101: 83
B102: Haldimand (Caledonia) | C102: 43.06487 | D102: 79.96262 | E102: 9194.093691 | F102: 1.2 | G102: 0.4 | H102: 17.37667776 | I102: 0.44 | J102: 83 | M102: Haldimand (Caledonia) | N102: 43.06487 | O102: 79.96262 | P102: 9194.093691 | Q102: 17.37667776 | R102: 0.44 | S102: 83
B103: Haldimand (Hagersville) | C103: 42.94939 | D103: 80.04501 | E103: 9199.212467 | F103: 1.3 | G103: 0.4 | H103: 18.26778944 | I103: 0.46 | J103: 85 | M103: Haldimand (Hagersville) | N103: 42.94939 | O103: 80.04501 | P103: 9199.212467 | Q103: 18.26778944 | R103: 0.46 | S103: 85
B104: Haliburton | C104: 45.0833 | D104: 78.5 | E104: 9107.713412 | F104: 2.9 | G104: 0.4 | H104: 32.52557632 | I104: 0.35 | J104: 74 | M104: Haliburton | N104: 45.0833 | O104: 78.5 | P104: 9107.713412 | Q104: 32.52557632 | R104: 0.35 | S104: 74
B105: Halton Hills | C105: 43.64699 | D105: 80.01766 | E105: 9206.297852 | F105: 1.4 | G105: 0.4 | H105: 19.15890112 | I105: 0.37 | J105: 76 | M105: Halton Hills | N105: 43.64699 | O105: 80.01766 | P105: 9206.297852 | Q105: 19.15890112 | R105: 0.37 | S105: 76
B106: Hamilton | C106: 43.25002 | D106: 79.86609 | E106: 9188.807502 | F106: 1.1 | G106: 0.4 | H106: 16.48556608 | I106: 0.46 | J106: 85 | M106: Hamilton | N106: 43.25002 | O106: 79.86609 | P106: 9188.807502 | Q106: 16.48556608 | R106: 0.46 | S106: 85
B107: Hanover | C107: 44.1526 | D107: 81.02541 | E107: 9292.969252 | F107: 2.6 | G107: 0.4 | H107: 29.85224128 | I107: 0.48 | J107: 87 | M107: Hanover | N107: 44.1526 | O107: 81.02541 | P107: 9292.969252 | Q107: 29.85224128 | R107: 0.48 | S107: 87
B108: Hastings | C108: 44.30958 | D108: 77.95676 | E108: 9052.752544 | F108: 2 | G108: 0.4 | H108: 24.5055712 | I108: 0.41 | J108: 80 | M108: Hastings | N108: 44.30958 | O108: 77.95676 | P108: 9052.752544 | Q108: 24.5055712 | R108: 0.41 | S108: 80
B109: Hawkesbury | C109: 45.60713 | D109: 74.604719 | E109: 8817.406895 | F109: 2.3 | G109: 0.4 | H109: 27.17890624 | I109: 0.41 | J109: 80 | M109: Hawkesbury | N109: 45.60713 | O109: 74.604719 | P109: 8817.406895 | Q109: 27.17890624 | R109: 0.41 | S109: 80
B110: Hearst | C110: 49.68802 | D110: 83.66696 | E110: 9552.500822 | F110: 2.8 | G110: 0.3 | H110: 29.96363024 | I110: 0.3 | J110: 69 | M110: Hearst | N110: 49.68802 | O110: 83.66696 | P110: 9552.500822 | Q110: 29.96363024 | R110: 0.3 | S110: 69
B111: Honey Harbour | C111: 44.87107 | D111: 79.81711 | E111: 9207.211266 | F111: 2.7 | G111: 0.4 | H111: 30.74335296 | I111: 0.39 | J111: 78 | M111: Honey Harbour | N111: 44.87107 | O111: 79.81711 | P111: 9207.211266 | Q111: 30.74335296 | R111: 0.39 | S111: 78
B112: Hornepayne | C112: 49.21302 | D112: 84.77107 | E112: 9628.02737 | F112: 3.3 | G112: 0.4 | H112: 36.09002304 | I112: 0.3 | J112: 69 | M112: Hornepayne | N112: 49.21302 | O112: 84.77107 | P112: 9628.02737 | Q112: 36.09002304 | R112: 0.3 | S112: 69
B113: Huntsville | C113: 45.32693 | D113: 79.21675 | E113: 9167.075893 | F113: 2.9 | G113: 0.4 | H113: 32.52557632 | I113: 0.35 | J113: 74 | M113: Huntsville | N113: 45.32693 | O113: 79.21675 | P113: 9167.075893 | Q113: 32.52557632 | R113: 0.35 | S113: 74
B114: Ingersoll | C114: 43.03816 | D114: 80.88405 | E114: 9268.132171 | F114: 1.7 | G114: 0.4 | H114: 21.83223616 | I114: 0.48 | J114: 87 | M114: Ingersoll | N114: 43.03816 | O114: 80.88405 | P114: 9268.132171 | Q114: 21.83223616 | R114: 0.48 | S114: 87
B115: Iroquios Falls | C115: 48.76798 | D115: 80.67317 | E115: 9325.697094 | F115: 2.9 | G115: 0.3 | H115: 30.85474192 | I115: 0.37 | J115: 76 | M115: Iroquios Falls | N115: 48.76798 | O115: 80.67317 | P115: 9325.697094 | Q115: 30.85474192 | R115: 0.37 | S115: 76
B116: Jellicoe | C116: 49.68333 | D116: 87.51667 | E116: 9828.914209 | F116: 2.7 | G116: 0.4 | H116: 30.74335296 | I116: 0.3 | J116: 69 | M116: Jellicoe | N116: 49.68333 | O116: 87.51667 | P116: 9828.914209 | Q116: 30.74335296 | R116: 0.3 | S116: 69
B117: Kapuskasing | C117: 49.41251 | D117: 82.41874 | E117: 9460.007271 | F117: 3 | G117: 0.3 | H117: 31.7458536 | I117: 0.31 | J117: 70 | M117: Kapuskasing | N117: 49.41251 | O117: 82.41874 | P117: 9460.007271 | Q117: 31.7458536 | R117: 0.31 | S117: 70
B118: Kemptville | C118: 45.01639 | D118: 75.64595 | E118: 8885.224648 | F118: 2.3 | G118: 0.4 | H118: 27.17890624 | I118: 0.41 | J118: 80 | M118: Kemptville | N118: 45.01639 | O118: 75.64595 | P118: 8885.224648 | Q118: 27.17890624 | R118: 0.41 | S118: 80
B119: Kenora | C119: 49.76704 | D119: 94.48939 | E119: 10329.78103 | F119: 2.5 | G119: 0.3 | H119: 27.2902952 | I119: 0.31 | J119: 70 | M119: Kenora | N119: 49.76704 | O119: 94.48939 | P119: 10329.78103 | Q119: 27.2902952 | R119: 0.31 | S119: 70
B120: Killaloe | C120: 45.5645 | D120: 77.4196 | E120: 9032.226899 | F120: 2.7 | G120: 0.4 | H120: 30.74335296 | I120: 0.35 | J120: 74 | M120: Killaloe | N120: 45.5645 | O120: 77.4196 | P120: 9032.226899 | Q120: 30.74335296 | R120: 0.35 | S120: 74
B121: Kincardine | C121: 44.1753 | D121: 81.63657 | E121: 9341.712557 | F121: 2.6 | G121: 0.4 | H121: 29.85224128 | I121: 0.55 | J121: 93 | M121: Kincardine | N121: 44.1753 | O121: 81.63657 | P121: 9341.712557 | Q121: 29.85224128 | R121: 0.55 | S121: 93
B122: Kingston | C122: 44.23117 | D122: 76.48595 | E122: 8935.723308 | F122: 2.1 | G122: 0.4 | H122: 25.39668288 | I122: 0.47 | J122: 86 | M122: Kingston | N122: 44.23117 | O122: 76.48595 | P122: 8935.723308 | Q122: 25.39668288 | R122: 0.47 | S122: 86
B123: Kinmount | C123: 44.78167 | D123: 78.6515 | E123: 9114.780914 | F123: 2.7 | G123: 0.4 | H123: 30.74335296 | I123: 0.35 | J123: 74 | M123: Kinmount | N123: 44.78167 | O123: 78.6515 | P123: 9114.780914 | Q123: 30.74335296 | R123: 0.35 | S123: 74
B124: Kirkland Lake | C124: 48.15101 | D124: 80.03303 | E124: 9270.213663 | F124: 2.9 | G124: 0.3 | H124: 30.85474192 | I124: 0.39 | J124: 78 | M124: Kirkland Lake | N124: 48.15101 | O124: 80.03303 | P124: 9270.213663 | Q124: 30.85474192 | R124: 0.39 | S124: 78
B125: Kitchener | C125: 43.43431 | D125: 80.47775 | E125: 9240.344864 | F125: 2 | G125: 0.4 | H125: 24.5055712 | I125: 0.37 | J125: 76 | M125: Kitchener | N125: 43.43431 | O125: 80.47775 | P125: 9240.344864 | Q125: 24.5055712 | R125: 0.37 | S125: 76
B126: Lakefield | C126: 44.42219 | D126: 78.27314 | E126: 9079.457306 | F126: 2.2 | G126: 0.4 | H126: 26.28779456 | I126: 0.38 | J126: 77 | M126: Lakefield | N126: 44.42219 | O126: 78.27314 | P126: 9079.457306 | Q126: 26.28779456 | R126: 0.38 | S126: 77
B127: Lansdowne House | C127: 52.21947 | D127: 87.89123 | E127: 9863.90941 | F127: 3 | G127: 0.2 | H127: 30.0750192 | I127: 0.32 | J127: 71 | M127: Lansdowne House | N127: 52.21947 | O127: 87.89123 | P127: 9863.90941 | Q127: 30.0750192 | R127: 0.32 | S127: 71
B128: Leamington | C128: 42.05316 | D128: 82.59989 | E128: 9397.318965 | F128: 0.8 | G128: 0.4 | H128: 13.81223104 | I128: 0.47 | J128: 86 | M128: Leamington | N128: 42.05316 | O128: 82.59989 | P128: 9397.318965 | Q128: 13.81223104 | R128: 0.47 | S128: 86
B129: Lindsay | C129: 44.35657 | D129: 78.74075 | E129: 9115.215896 | F129: 2.3 | G129: 0.4 | H129: 27.17890624 | I129: 0.38 | J129: 77 | M129: Lindsay | N129: 44.35657 | O129: 78.74075 | P129: 9115.215896 | Q129: 27.17890624 | R129: 0.38 | S129: 77
B130: Lion's Head | C130: 44.98715 | D130: 81.25461 | E130: 9321.108315 | F130: 2.7 | G130: 0.4 | H130: 30.74335296 | I130: 0.48 | J130: 87 | M130: Lion's Head | N130: 44.98715 | O130: 81.25461 | P130: 9321.108315 | Q130: 30.74335296 | R130: 0.48 | S130: 87
B131: Listowel | C131: 43.73342 | D131: 80.95147 | E131: 9281.986046 | F131: 2.6 | G131: 0.4 | H131: 29.85224128 | I131: 0.47 | J131: 86 | M131: Listowel | N131: 43.73342 | O131: 80.95147 | P131: 9281.986046 | Q131: 29.85224128 | R131: 0.47 | S131: 86
B132: London | C132: 42.98695 | D132: 81.24318 | E132: 9296.557762 | F132: 1.9 | G132: 0.4 | H132: 23.61445952 | I132: 0.47 | J132: 86 | M132: London | N132: 42.98695 | O132: 81.24318 | P132: 9296.557762 | Q132: 23.61445952 | R132: 0.47 | S132: 86
B133: Lucan | C133: 43.18781 | D133: 81.40284 | E133: 9311.769214 | F133: 2.3 | G133: 0.4 | H133: 27.17890624 | I133: 0.5 | J133: 88 | M133: Lucan | N133: 43.18781 | O133: 81.40284 | P133: 9311.769214 | Q133: 27.17890624 | R133: 0.5 | S133: 88
B134: Maitland | C134: 44.63831 | D134: 75.60904 | E134: 8874.886709 | F134: 2.2 | G134: 0.4 | H134: 26.28779456 | I134: 0.44 | J134: 83 | M134: Maitland | N134: 44.63831 | O134: 75.60904 | P134: 8874.886709 | Q134: 26.28779456 | R134: 0.44 | S134: 83
B135: Markdale | C135: 44.31868 | D135: 80.64788 | E135: 9265.145775 | F135: 3.2 | G135: 0.4 | H135: 35.19891136 | I135: 0.41 | J135: 80 | M135: Markdale | N135: 44.31868 | O135: 80.64788 | P135: 9265.145775 | Q135: 35.19891136 | R135: 0.41 | S135: 80
B136: Markham | C136: 43.8561 | D136: 79.33702 | E136: 9154.962671 | F136: 1.3 | G136: 0.4 | H136: 18.26778944 | I136: 0.44 | J136: 83 | M136: Markham | N136: 43.8561 | O136: 79.33702 | P136: 9154.962671 | Q136: 18.26778944 | R136: 0.44 | S136: 83
B137: Martin | C137: 49.24958 | D137: 91.1476 | E137: 10090.83782 | F137: 2.6 | G137: 0.3 | H137: 28.18140688 | I137: 0.3 | J137: 69 | M137: Martin | N137: 49.24958 | O137: 91.1476 | P137: 10090.83782 | Q137: 28.18140688 | R137: 0.3 | S137: 69
B138: Matheson | C138: 48.53381 | D138: 80.46409 | E138: 9307.234033 | F138: 2.8 | G138: 0.3 | H138: 29.96363024 | I138: 0.39 | J138: 78 | M138: Matheson | N138: 48.53381 | O138: 80.46409 | P138: 9307.234033 | Q138: 29.96363024 | R138: 0.39 | S138: 78
B139: Mattawa | C139: 46.31748 | D139: 78.70219 | E139: 9142.852586 | F139: 2.1 | G139: 0.4 | H139: 25.39668288 | I139: 0.32 | J139: 71 | M139: Mattawa | N139: 46.31748 | O139: 78.70219 | P139: 9142.852586 | Q139: 25.39668288 | R139: 0.32 | S139: 71
B140: Midland | C140: 44.74952 | D140: 79.89219 | E140: 9211.39641 | F140: 2.7 | G140: 0.4 | H140: 30.74335296 | I140: 0.39 | J140: 78 | M140: Midland | N140: 44.74952 | O140: 79.89219 | P140: 9211.39641 | Q140: 30.74335296 | R140: 0.39 | S140: 78
B141: Milton | C141: 43.5183 | D141: 79.8774 | E141: 9193.347823 | F141: 1.3 | G141: 0.4 | H141: 18.26778944 | I141: 0.43 | J141: 82 | M141: Milton | N141: 43.5183 | O141: 79.8774 | P141: 9193.347823 | Q141: 18.26778944 | R141: 0.43 | S141: 82
B142: Milverton | C142: 43.5658 | D142: 80.9221 | E142: 9277.597333 | F142: 2.4 | G142: 0.4 | H142: 28.07001792 | I142: 0.43 | J142: 82 | M142: Milverton | N142: 43.5658 | O142: 80.9221 | P142: 9277.597333 | Q142: 28.07001792 | R142: 0.43 | S142: 82
B143: Minden | C143: 44.92718 | D143: 78.72538 | E143: 9122.807808 | F143: 2.7 | G143: 0.4 | H143: 30.74335296 | I143: 0.35 | J143: 74 | M143: Minden | N143: 44.92718 | O143: 78.72538 | P143: 9122.807808 | Q143: 30.74335296 | R143: 0.35 | S143: 74
B144: Mississauga | C144: 43.58905 | D144: 79.64412 | E144: 9175.664291 | F144: 1.1 | G144: 0.4 | H144: 16.48556608 | I144: 0.44 | J144: 83 | M144: Mississauga | N144: 43.58905 | O144: 79.64412 | P144: 9175.664291 | Q144: 16.48556608 | R144: 0.44 | S144: 83
B145: Mitchell | C145: 43.4678 | D145: 81.19687 | E145: 9298.451097 | F145: 2.4 | G145: 0.4 | H145: 28.07001792 | I145: 0.48 | J145: 87 | M145: Mitchell | N145: 43.4678 | O145: 81.19687 | P145: 9298.451097 | Q145: 28.07001792 | R145: 0.48 | S145: 87
B146: Moosonee | C146: 51.27309 | D146: 80.64005 | E146: 9358.191114 | F146: 2.7 | G146: 0.3 | H146: 29.07251856 | I146: 0.35 | J146: 74 | M146: Moosonee | N146: 51.27309 | O146: 80.64005 | P146: 9358.191114 | Q146: 29.07251856 | R146: 0.35 | S146: 74
B147: Morrisburg | C147: 44.89779 | D147: 75.1834 | E147: 8847.044017 | F147: 2.3 | G147: 0.4 | H147: 27.17890624 | I147: 0.41 | J147: 80 | M147: Morrisburg | N147: 44.89779 | O147: 75.1834 | P147: 8847.044017 | Q147: 27.17890624 | R147: 0.41 | S147: 80
B148: Mount Forest | C148: 43.98109 | D148: 80.73587 | E148: 9267.862832 | F148: 2.7 | G148: 0.4 | H148: 30.74335296 | I148: 0.41 | J148: 80 | M148: Mount Forest | N148: 43.98109 | O148: 80.73587 | P148: 9267.862832 | Q148: 30.74335296 | R148: 0.41 | S148: 80
B149: Nakina | C149: 49.76667 | D149: 87.28333 | E149: 9812.472026 | F149: 2.8 | G149: 0.4 | H149: 31.63446464 | I149: 0.3 | J149: 69 | M149: Nakina | N149: 49.76667 | O149: 87.28333 | P149: 9812.472026 | Q149: 31.63446464 | R149: 0.3 | S149: 69
B150: Nanticoke | C150: 42.80907 | D150: 80.08228 | E150: 9200.381128 | F150: 1.4 | G150: 0.4 | H150: 19.15890112 | I150: 0.48 | J150: 87 | M150: Nanticoke | N150: 42.80907 | O150: 80.08228 | P150: 9200.381128 | Q150: 19.15890112 | R150: 0.48 | S150: 87
B151: Napanee | C151: 44.24847 | D151: 76.95114 | E151: 8972.601715 | F151: 1.9 | G151: 0.4 | H151: 23.61445952 | I151: 0.43 | J151: 82 | M151: Napanee | N151: 44.24847 | O151: 76.95114 | P151: 8972.601715 | Q151: 23.61445952 | R151: 0.43 | S151: 82
B152: New Liskeard | C152: 47.50876 | D152: 79.67431 | E152: =ACOS(SIN(RADIANS(ABS(LAT)))*SIN(RADIANS(C152))+COS(RADIANS(ABS(LAT)))*COS(RADIANS(C152))*COS(RADIANS(D152-ABS(LONG))))*6371 -> 9234.278433 | F152: 2.6 | G152: 0.4 | H152: 29.85224128 | I152: 0.43 | J152: 82 | M152: New Liskeard | N152: 47.50876 | O152: 79.67431 | P152: 9234.278433 | Q152: 29.85224128 | R152: 0.43 | S152: 82
A153: =IF(E153=MIN($E$24:$E$684),"yes","") ->  | B153: Newcastle | C153: 43.91777 | D153: 78.58748 | E153: 9096.356079 | F153: 1.5 | G153: 0.4 | H153: =0.8*((F153*0.8*2/3+G153)*20.88543) -> 20.0500128 | I153: 0.48 | J153: =ROUNDUP(SQRT(2*I153/0.00064645)*2.236936141,0) -> 87 | L153: =IF(P153=MIN($P$24:$P$684),"yes","") ->  | M153: =B153 -> Newcastle | N153: =C153 -> 43.91777 | O153: =D153 -> 78.58748 | P153: =IF(A153<>"yes",E153,"") -> 9096.356079 | Q153: =H153 -> 20.0500128 | R153: 0.48 | S153: =ROUNDUP(SQRT(2*R153/0.00064645)*2.236936141,0) -> 87
B154: Newmarket | C154: 44.05919 | D154: 79.46126 | E154: 9167.733772 | F154: 2 | G154: 0.4 | H154: 24.5055712 | I154: 0.38 | J154: 77 | M154: Newmarket | N154: 44.05919 | O154: 79.46126 | P154: 9167.733772 | Q154: 24.5055712 | R154: 0.38 | S154: 77
B155: Niagara Falls | C155: 43.08956 | D155: 79.08494 | E155: 9123.714144 | F155: 1.8 | G155: 0.4 | H155: 22.72334784 | I155: 0.43 | J155: 82 | M155: Niagara Falls | N155: 43.08956 | O155: 79.08494 | P155: 9123.714144 | Q155: 22.72334784 | R155: 0.43 | S155: 82
B156: North Bay | C156: 46.30912 | D156: 79.46082 | E156: 9200.430957 | F156: 2.2 | G156: 0.4 | H156: 26.28779456 | I156: 0.34 | J156: 73 | M156: North Bay | N156: 46.30912 | O156: 79.46082 | P156: 9200.430957 | Q156: 26.28779456 | R156: 0.34 | S156: 73
B157: Norwood | C157: 44.38242 | D157: 77.97992 | E157: 9055.767572 | F157: 2.1 | G157: 0.4 | H157: 25.39668288 | I157: 0.41 | J157: 80 | M157: Norwood | N157: 44.38242 | O157: 77.97992 | P157: 9055.767572 | Q157: 25.39668288 | R157: 0.41 | S157: 80
B158: Oakville | C158: 43.46752 | D158: 79.68767 | E158: 9177.46408 | F158: 1.1 | G158: 0.4 | H158: 16.48556608 | I158: 0.47 | J158: 86 | M158: Oakville | N158: 43.46752 | O158: 79.68767 | P158: 9177.46408 | Q158: 16.48556608 | R158: 0.47 | S158: 86
B159: Orangeville | C159: 43.91998 | D159: 80.09431 | E159: 9216.06195 | F159: 2.3 | G159: 0.4 | H159: 27.17890624 | I159: 0.36 | J159: 75 | M159: Orangeville | N159: 43.91998 | O159: 80.09431 | P159: 9216.06195 | Q159: 27.17890624 | R159: 0.36 | S159: 75
B160: Orillia | C160: 44.60825 | D160: 79.41968 | E160: 9172.341259 | F160: 2.4 | G160: 0.4 | H160: 28.07001792 | I160: 0.36 | J160: 75 | M160: Orillia | N160: 44.60825 | O160: 79.41968 | P160: 9172.341259 | Q160: 28.07001792 | R160: 0.36 | S160: 75
B161: Oshawa | C161: 43.89709 | D161: 78.86579 | E161: 9118.127016 | F161: 1.4 | G161: 0.4 | H161: 19.15890112 | I161: 0.48 | J161: 87 | M161: Oshawa | N161: 43.89709 | O161: 78.86579 | P161: 9118.127016 | Q161: 19.15890112 | R161: 0.48 | S161: 87
B162: Ottawa | C162: 45.42153 | D162: 75.69719 | E162: 8897.210182 | F162: 2.4 | G162: 0.4 | H162: 28.07001792 | I162: 0.41 | J162: 80 | M162: Ottawa | N162: 45.42153 | O162: 75.69719 | P162: 8897.210182 | Q162: 28.07001792 | R162: 0.41 | S162: 80
B163: Owen Sound | C163: 44.56903 | D163: 80.94056 | E163: 9291.371193 | F163: 2.8 | G163: 0.4 | H163: 31.63446464 | I163: 0.48 | J163: 87 | M163: Owen Sound | N163: 44.56903 | O163: 80.94056 | P163: 9291.371193 | Q163: 31.63446464 | R163: 0.48 | S163: 87
B164: Pagwa River | C164: 50.01667 | D164: 85.21667 | E164: 9666.008086 | F164: 2.7 | G164: 0.4 | H164: 30.74335296 | I164: 0.3 | J164: 69 | M164: Pagwa River | N164: 50.01667 | O164: 85.21667 | P164: 9666.008086 | Q164: 30.74335296 | R164: 0.3 | S164: 69
B165: Paris | C165: 43.19402 | D165: 80.3845 | E165: 9229.78091 | F165: 1.4 | G165: 0.4 | H165: 19.15890112 | I165: 0.42 | J165: 81 | M165: Paris | N165: 43.19402 | O165: 80.3845 | P165: 9229.78091 | Q165: 19.15890112 | R165: 0.42 | S165: 81
B166: Parkhill | C166: 43.16227 | D166: 81.68422 | E166: 9334.181953 | F166: 2.1 | G166: 0.4 | H166: 25.39668288 | I166: 0.5 | J166: 88 | M166: Parkhill | N166: 43.16227 | O166: 81.68422 | P166: 9334.181953 | Q166: 25.39668288 | R166: 0.5 | S166: 88
B167: Parry Sound | C167: 45.34739 | D167: 80.03478 | E167: 9230.773515 | F167: 2.8 | G167: 0.4 | H167: 31.63446464 | I167: 0.39 | J167: 78 | M167: Parry Sound | N167: 45.34739 | O167: 80.03478 | P167: 9230.773515 | Q167: 31.63446464 | R167: 0.39 | S167: 78
B168: Pelham | C168: 43.03772 | D168: 79.32876 | E168: 9142.611951 | F168: 2.1 | G168: 0.4 | H168: 25.39668288 | I168: 0.42 | J168: 81 | M168: Pelham | N168: 43.03772 | O168: 79.32876 | P168: 9142.611951 | Q168: 25.39668288 | R168: 0.42 | S168: 81
B169: Pembroke | C169: 45.82665 | D169: 77.11088 | E169: 9013.211366 | F169: 2.5 | G169: 0.4 | H169: 28.9611296 | I169: 0.35 | J169: 74 | M169: Pembroke | N169: 45.82665 | O169: 77.11088 | P169: 9013.211366 | Q169: 28.9611296 | R169: 0.35 | S169: 74
B170: Penetanguishene | C170: 44.76877 | D170: 79.93368 | E170: 9214.912955 | F170: 2.8 | G170: 0.4 | H170: 31.63446464 | I170: 0.39 | J170: 78 | M170: Penetanguishene | N170: 44.76877 | O170: 79.93368 | P170: 9214.912955 | Q170: 31.63446464 | R170: 0.39 | S170: 78
B171: Perth | C171: 44.89881 | D171: 76.24856 | E171: 8929.63912 | F171: 2.3 | G171: 0.4 | H171: 27.17890624 | I171: 0.41 | J171: 80 | M171: Perth | N171: 44.89881 | O171: 76.24856 | P171: 8929.63912 | Q171: 27.17890624 | R171: 0.41 | S171: 80
B172: Petawawa | C172: 45.89826 | D172: 77.28288 | E172: 9027.638095 | F172: 2.6 | G172: 0.4 | H172: 29.85224128 | I172: 0.35 | J172: 74 | M172: Petawawa | N172: 45.89826 | O172: 77.28288 | P172: 9027.638095 | Q172: 29.85224128 | R172: 0.35 | S172: 74
B173: Peterborough | C173: 44.30906 | D173: 78.31975 | E173: 9081.320861 | F173: 2 | G173: 0.4 | H173: 24.5055712 | I173: 0.41 | J173: 80 | M173: Peterborough | N173: 44.30906 | O173: 78.31975 | P173: 9081.320861 | Q173: 24.5055712 | R173: 0.41 | S173: 80
B174: Petrolia | C174: 42.88184 | D174: 82.14443 | E174: 9368.411032 | F174: 1.3 | G174: 0.4 | H174: 18.26778944 | I174: 0.47 | J174: 86 | M174: Petrolia | N174: 42.88184 | O174: 82.14443 | P174: 9368.411032 | Q174: 18.26778944 | R174: 0.47 | S174: 86
B175: Pickering | C175: 43.83841 | D175: 79.08676 | E175: 9134.808857 | F175: 1 | G175: 0.4 | H175: 15.5944544 | I175: 0.48 | J175: 87 | M175: Pickering | N175: 43.83841 | O175: 79.08676 | P175: 9134.808857 | Q175: 15.5944544 | R175: 0.48 | S175: 87
B176: Picton | C176: 44.00862 | D176: 77.13922 | E176: 8983.206121 | F176: 2 | G176: 0.4 | H176: 24.5055712 | I176: 0.49 | J176: 88 | M176: Picton | N176: 44.00862 | O176: 77.13922 | P176: 8983.206121 | Q176: 24.5055712 | R176: 0.49 | S176: 88
B177: Plattsville | C177: 43.30325 | D177: 80.62157 | E177: 9250.2401 | F177: 1.9 | G177: 0.4 | H177: 23.61445952 | I177: 0.42 | J177: 81 | M177: Plattsville | N177: 43.30325 | O177: 80.62157 | P177: 9250.2401 | Q177: 23.61445952 | R177: 0.42 | S177: 81
B178: Point Alexander | C178: 46.13333 | D178: 77.56667 | E178: 9053.417904 | F178: 2.5 | G178: 0.4 | H178: 28.9611296 | I178: 0.35 | J178: 74 | M178: Point Alexander | N178: 46.13333 | O178: 77.56667 | P178: 9053.417904 | Q178: 28.9611296 | R178: 0.35 | S178: 74
B179: Port Burwell | C179: 42.6478 | D179: 80.80032 | E179: 9256.616459 | F179: 1.2 | G179: 0.4 | H179: 17.37667776 | I179: 0.47 | J179: 86 | M179: Port Burwell | N179: 42.6478 | O179: 80.80032 | P179: 9256.616459 | Q179: 17.37667776 | R179: 0.47 | S179: 86
B180: Port Colborne | C180: 42.88652 | D180: 79.25086 | E180: 9134.175662 | F180: 2.1 | G180: 0.4 | H180: 25.39668288 | I180: 0.46 | J180: 85 | M180: Port Colborne | N180: 42.88652 | O180: 79.25086 | P180: 9134.175662 | Q180: 25.39668288 | R180: 0.46 | S180: 85
B181: Port Elgin | C181: 44.43405 | D181: 81.39294 | E181: 9325.412117 | F181: 2.8 | G181: 0.4 | H181: 31.63446464 | I181: 0.55 | J181: 93 | M181: Port Elgin | N181: 44.43405 | O181: 81.39294 | P181: 9325.412117 | Q181: 31.63446464 | R181: 0.55 | S181: 93
B182: Port Hope | C182: 43.94916 | D182: 78.29346 | E182: 9073.535942 | F182: 1.2 | G182: 0.4 | H182: 17.37667776 | I182: 0.48 | J182: 87 | M182: Port Hope | N182: 43.94916 | O182: 78.29346 | P182: 9073.535942 | Q182: 17.37667776 | R182: 0.48 | S182: 87
B183: Port Perry | C183: 44.10505 | D183: 78.94415 | E183: 9127.458597 | F183: 2.4 | G183: 0.4 | H183: 28.07001792 | I183: 0.44 | J183: 83 | M183: Port Perry | N183: 44.10505 | O183: 78.94415 | P183: 9127.458597 | Q183: 28.07001792 | R183: 0.44 | S183: 83
B184: Port Stanley | C184: 42.66414 | D184: 81.21563 | E184: 9290.579245 | F184: 1.2 | G184: 0.4 | H184: 17.37667776 | I184: 0.47 | J184: 86 | M184: Port Stanley | N184: 42.66414 | O184: 81.21563 | P184: 9290.579245 | Q184: 17.37667776 | R184: 0.47 | S184: 86
B185: Prescott | C185: 44.70929 | D185: 75.51897 | E185: 8869.284096 | F185: 2.2 | G185: 0.4 | H185: 26.28779456 | I185: 0.44 | J185: 83 | M185: Prescott | N185: 44.70929 | O185: 75.51897 | P185: 8869.284096 | Q185: 26.28779456 | R185: 0.44 | S185: 83
B186: Princeton | C186: 43.17005 | D186: 80.52672 | E186: 9240.932067 | F186: 1.5 | G186: 0.4 | H186: 20.0500128 | I186: 0.42 | J186: 81 | M186: Princeton | N186: 43.17005 | O186: 80.52672 | P186: 9240.932067 | Q186: 20.0500128 | R186: 0.42 | S186: 81
B187: Raith | C187: 48.81856 | D187: 89.91958 | E187: 10001.65538 | F187: 2.7 | G187: 0.4 | H187: 30.74335296 | I187: 0.3 | J187: 69 | M187: Raith | N187: 48.81856 | O187: 89.91958 | P187: 10001.65538 | Q187: 30.74335296 | R187: 0.3 | S187: 69
B188: Rayside-Balfour | C188: 46.62868 | D188: 81.2452 | E188: 9340.404992 | F188: 2.5 | G188: 0.4 | H188: 28.9611296 | I188: 0.45 | J188: 84 | M188: Rayside-Balfour | N188: 46.62868 | O188: 81.2452 | P188: 9340.404992 | Q188: 28.9611296 | R188: 0.45 | S188: 84
B189: Red Lake | C189: 51.0146 | D189: 93.82892 | E189: 10275.27578 | F189: 2.6 | G189: 0.3 | H189: 28.18140688 | I189: 0.3 | J189: 69 | M189: Red Lake | N189: 51.0146 | O189: 93.82892 | P189: 10275.27578 | Q189: 28.18140688 | R189: 0.3 | S189: 69
B190: Renfrew | C190: 45.47492 | D190: 76.68772 | E190: 8974.345784 | F190: 2.5 | G190: 0.4 | H190: 28.9611296 | I190: 0.35 | J190: 74 | M190: Renfrew | N190: 45.47492 | O190: 76.68772 | P190: 8974.345784 | Q190: 28.9611296 | R190: 0.35 | S190: 74
B191: Richmond Hill | C191: 43.88284 | D191: 79.44028 | E191: 9163.554207 | F191: 1.5 | G191: 0.4 | H191: 20.0500128 | I191: 0.44 | J191: 83 | M191: Richmond Hill | N191: 43.88284 | O191: 79.44028 | P191: 9163.554207 | Q191: 20.0500128 | R191: 0.44 | S191: 83
B192: Rockland | C192: 45.54837 | D192: 75.29161 | E192: 8868.675393 | F192: 2.4 | G192: 0.4 | H192: 28.07001792 | I192: 0.4 | J192: 79 | M192: Rockland | N192: 45.54837 | O192: 75.29161 | P192: 8868.675393 | Q192: 28.07001792 | R192: 0.4 | S192: 79
B193: Sarnia | C193: 42.97454 | D193: 82.40659 | E193: 9390.613223 | F193: 1.1 | G193: 0.4 | H193: 16.48556608 | I193: 0.47 | J193: 86 | M193: Sarnia | N193: 42.97454 | O193: 82.40659 | P193: 9390.613223 | Q193: 16.48556608 | R193: 0.47 | S193: 86
B194: Sault Ste. Marie | C194: 46.52186 | D194: 84.34609 | E194: 9575.328715 | F194: 3.1 | G194: 0.4 | H194: 34.30779968 | I194: 0.44 | J194: 83 | M194: Sault Ste. Marie | N194: 46.52186 | O194: 84.34609 | P194: 9575.328715 | Q194: 34.30779968 | R194: 0.44 | S194: 83
B195: Schreiber | C195: 48.81331 | D195: 87.26646 | E195: 9807.427082 | F195: 3.3 | G195: 0.4 | H195: 36.09002304 | I195: 0.39 | J195: 78 | M195: Schreiber | N195: 48.81331 | O195: 87.26646 | P195: 9807.427082 | Q195: 36.09002304 | R195: 0.39 | S195: 78
B196: Seaforth | C196: 43.55343 | D196: 81.3934 | E196: 9315.210856 | F196: 2.5 | G196: 0.4 | H196: 28.9611296 | I196: 0.48 | J196: 87 | M196: Seaforth | N196: 43.55343 | O196: 81.3934 | P196: 9315.210856 | Q196: 28.9611296 | R196: 0.48 | S196: 87
B197: Shelburne | C197: 44.07912 | D197: 80.20117 | E197: 9226.667305 | F197: 3.1 | G197: 0.4 | H197: 34.30779968 | I197: 0.4 | J197: 79 | M197: Shelburne | N197: 44.07912 | O197: 80.20117 | P197: 9226.667305 | Q197: 34.30779968 | R197: 0.4 | S197: 79
B198: Simcoe | C198: 42.83726 | D198: 80.30404 | E198: 9218.709309 | F198: 1.3 | G198: 0.4 | H198: 18.26778944 | I198: 0.45 | J198: 84 | M198: Simcoe | N198: 42.83726 | O198: 80.30404 | P198: 9218.709309 | Q198: 18.26778944 | R198: 0.45 | S198: 84
B199: Sioux Lookout | C199: 50.09783 | D199: 91.92204 | E199: 10144.62579 | F199: 2.6 | G199: 0.3 | H199: 28.18140688 | I199: 0.3 | J199: 69 | M199: Sioux Lookout | N199: 50.09783 | O199: 91.92204 | P199: 10144.62579 | Q199: 28.18140688 | R199: 0.3 | S199: 69
B200: Smiths Falls | C200: 44.90375 | D200: 76.02162 | E200: 8912.124428 | F200: 2.3 | G200: 0.4 | H200: 27.17890624 | I200: 0.41 | J200: 80 | M200: Smiths Falls | N200: 44.90375 | O200: 76.02162 | P200: 8912.124428 | Q200: 27.17890624 | R200: 0.41 | S200: 80
B201: Smithville | C201: 43.09565 | D201: 79.54942 | E201: 9161.20713 | F201: 1.5 | G201: 0.4 | H201: 20.0500128 | I201: 0.42 | J201: 81 | M201: Smithville | N201: 43.09565 | O201: 79.54942 | P201: 9161.20713 | Q201: 20.0500128 | R201: 0.42 | S201: 81
B202: Smooth Rock Falls | C202: 49.27534 | D202: 81.62089 | E202: 9400.91812 | F202: 2.7 | G202: 0.3 | H202: 29.07251856 | I202: 0.32 | J202: 71 | M202: Smooth Rock Falls | N202: 49.27534 | O202: 81.62089 | P202: 9400.91812 | Q202: 29.07251856 | R202: 0.32 | S202: 71
B203: South River | C203: 45.84104 | D203: 79.37957 | E203: 9187.280119 | F203: 2.8 | G203: 0.4 | H203: 31.63446464 | I203: 0.35 | J203: 74 | M203: South River | N203: 45.84104 | O203: 79.37957 | P203: 9187.280119 | Q203: 31.63446464 | R203: 0.35 | S203: 74
B204: Southampton | C204: 44.49485 | D204: 81.36956 | E204: 9324.28086 | F204: 2.7 | G204: 0.4 | H204: 30.74335296 | I204: 0.53 | J204: 91 | M204: Southampton | N204: 44.49485 | O204: 81.36956 | P204: 9324.28086 | Q204: 30.74335296 | R204: 0.53 | S204: 91
B205: St. Catherines | C205: 43.15937 | D205: 79.24686 | E205: 9137.75113 | F205: 1 | G205: 0.4 | H205: 15.5944544 | I205: 0.46 | J205: 85 | M205: St. Catherines | N205: 43.15937 | O205: 79.24686 | P205: 9137.75113 | Q205: 15.5944544 | R205: 0.46 | S205: 85
B206: St. Mary's | C206: 43.25959 | D206: 81.14065 | E206: 9291.476051 | F206: 2.2 | G206: 0.4 | H206: 26.28779456 | I206: 0.47 | J206: 86 | M206: St. Mary's | N206: 43.25959 | O206: 81.14065 | P206: 9291.476051 | Q206: 26.28779456 | R206: 0.47 | S206: 86
B207: St. Thomas | C207: 42.77772 | D207: 81.18265 | E207: 9289.219115 | F207: 1.4 | G207: 0.4 | H207: 19.15890112 | I207: 0.47 | J207: 86 | M207: St. Thomas | N207: 42.77772 | O207: 81.18265 | P207: 9289.219115 | Q207: 19.15890112 | R207: 0.47 | S207: 86
B208: Stirling | C208: 44.29614 | D208: 77.54749 | E208: 9020.327883 | F208: 1.7 | G208: 0.4 | H208: 21.83223616 | I208: 0.4 | J208: 79 | M208: Stirling | N208: 44.29614 | O208: 77.54749 | P208: 9020.327883 | Q208: 21.83223616 | R208: 0.4 | S208: 79
B209: Stratford | C209: 43.37 | D209: 80.98223 | E209: 9280.050093 | F209: 2.3 | G209: 0.4 | H209: 27.17890624 | I209: 0.45 | J209: 84 | M209: Stratford | N209: 43.37 | O209: 80.98223 | P209: 9280.050093 | Q209: 27.17890624 | R209: 0.45 | S209: 84
B210: Strathroy | C210: 42.95542 | D210: 81.62323 | E210: 9326.959105 | F210: 1.9 | G210: 0.4 | H210: 23.61445952 | I210: 0.47 | J210: 86 | M210: Strathroy | N210: 42.95542 | O210: 81.62323 | P210: 9326.959105 | Q210: 23.61445952 | R210: 0.47 | S210: 86
B211: Sturgeon Falls | C211: 46.36795 | D211: 79.924473 | E211: 9236.574044 | F211: 2.4 | G211: 0.4 | H211: 28.07001792 | I211: 0.35 | J211: 74 | M211: Sturgeon Falls | N211: 46.36795 | O211: 79.924473 | P211: 9236.574044 | Q211: 28.07001792 | R211: 0.35 | S211: 74
B212: Sudbury | C212: 46.49 | D212: 81.01 | E212: 9320.799808 | F212: 2.5 | G212: 0.4 | H212: 28.9611296 | I212: 0.46 | J212: 85 | M212: Sudbury | N212: 46.49 | O212: 81.01 | P212: 9320.799808 | Q212: 28.9611296 | R212: 0.46 | S212: 85
B213: Sundridge | C213: 45.76903 | D213: 79.39639 | E213: 9187.506251 | F213: 2.8 | G213: 0.4 | H213: 31.63446464 | I213: 0.35 | J213: 74 | M213: Sundridge | N213: 45.76903 | O213: 79.39639 | P213: 9187.506251 | Q213: 31.63446464 | R213: 0.35 | S213: 74
B214: Tavistock | C214: 43.32159 | D214: 80.83575 | E214: 9267.6883 | F214: 2.1 | G214: 0.4 | H214: 25.39668288 | I214: 0.45 | J214: 84 | M214: Tavistock | N214: 43.32159 | O214: 80.83575 | P214: 9267.6883 | Q214: 25.39668288 | R214: 0.45 | S214: 84
B215: Temagami | C215: 47.0645 | D215: 79.79094 | E215: 9236.481153 | F215: 2.6 | G215: 0.4 | H215: 29.85224128 | I215: 0.37 | J215: 76 | M215: Temagami | N215: 47.0645 | O215: 79.79094 | P215: 9236.481153 | Q215: 29.85224128 | R215: 0.37 | S215: 76
B216: Thamesford | C216: 43.05789 | D216: 80.99948 | E216: =ACOS(SIN(RADIANS(ABS(LAT)))*SIN(RADIANS(C216))+COS(RADIANS(ABS(LAT)))*COS(RADIANS(C216))*COS(RADIANS(D216-ABS(LONG))))*6371 -> 9277.694219 | F216: 1.9 | G216: 0.4 | H216: 23.61445952 | I216: 0.48 | J216: 87 | M216: Thamesford | N216: 43.05789 | O216: 80.99948 | P216: 9277.694219 | Q216: 23.61445952 | R216: 0.48 | S216: 87
A217: =IF(E217=MIN($E$24:$E$684),"yes","") ->  | B217: Thedford | C217: 43.16543 | D217: 81.85466 | E217: 9347.97301 | F217: 2.1 | G217: 0.4 | H217: =0.8*((F217*0.8*2/3+G217)*20.88543) -> 25.39668288 | I217: 0.5 | J217: 88 | L217: =IF(P217=MIN($P$24:$P$684),"yes","") ->  | M217: =B217 -> Thedford | N217: =C217 -> 43.16543 | O217: =D217 -> 81.85466 | P217: =IF(A217<>"yes",E217,"") -> 9347.97301 | Q217: =H217 -> 25.39668288 | R217: 0.5 | S217: 88
B218: Thunder Bay | C218: 48.3809 | D218: 89.24768 | E218: 9951.983245 | F218: 2.9 | G218: 0.4 | H218: 32.52557632 | I218: 0.39 | J218: =ROUNDUP(SQRT(2*I218/0.00064645)*2.236936141,0) -> 78 | M218: Thunder Bay | N218: 48.3809 | O218: 89.24768 | P218: 9951.983245 | Q218: 32.52557632 | R218: 0.39 | S218: =ROUNDUP(SQRT(2*R218/0.00064645)*2.236936141,0) -> 78
... 466 more rows

Sheet Revision Notes (hidden)
A1: Version Number | B1: Details
A2: 1.1 | B2: - Added Heavy Duty Tri-Pod Supports information
A3: 1.2 | B3: - Added logic to ensure that Westeel Structural Roof can only be applied to Stiffened Westeel Flat Bottom Bins.
B4: - Updated Guardian Standard BIAB information to 2019 data (BIAB BOM R1.5).
B5: - Updated Guardian Cable Locations column in Tables Tab to better estimate central cable location, and location of 42' radial cable.
B6: - Updated equation for Maximum Calculated Cable Length for Hopper Bottom and SSK Bins [ft] to better reflect Guardian cable length in bins with hoppers.
B7: - Changed main page to read Version X.X instead of Revision X.X.
B8: - Updated VBA code to better set print area.
A9: 1.3 | B9: - Changed main page to not show any results until all mandatory fields are filled in.
B10: - Updated 21' and 24' Upgrade 1 roof capacities.
B11: - Changed wording on Westeel hopper availability.
B12: - Updated logic for choosing the 42'-54' - 4-rib bracket system.
B13: - Updated equations for choosing hangar brackets and tri-pod systems to better reflect logic statements.
B14: - Added in Westeel EasyDry SGL Fan Inlet and DBL Fan Inlet bin type options.
A15: 2.0 | B15: - Changed all Guardian naming to SureTrack.
B16: - Non-structural roofs that will receive monitoring cables will now be supplied with Rib Caps. Rib Caps will take all of the cable load, therefore the cable load will no longer affect Roof Upgrades by reducing the capacity of the roof.
B17: - Main tab will now show how much Peak Load is available if a Central Monitoring Cable is installed in the bin.
B18: - Removed Unstiffened SSK offering, and updated Stiffened SSK offering.
B19: - The calculation to determine the cable length in Flat Bottom Bins has changed from a clearance of 3' to 2' to match SureTrack's worst case scenario.
B20: - Important notes updated to reflect change to SureTrack offering.
A21: 3.0 | B21: - Updated Remaing Peak Load to correctly read Unknown Peak Load Type rating as the Higher Rated Peak Load Type rating.
B22: - Changed all Westeel and SureTrack naming to AGI Westeel and AGI SureTrack.
B23: - Added Quick Notes and Instructions & Training tabs.
B24: - Changed Main tab logo from AGI Westeel to AGI.
A25: 4 | B25: - Updated Stiffened AGI Westeel Hopper to include 2710 & 2712, 3004-10, and 3304-10 models (ECR A8635)

Sheet Other (hidden)
B2: Non-Structural Roof Capacity Chart:
B3: Maximum Roof Snow Load @ Standard Peak Load
B4: Bin Series | C4: Standard Peak Load | D4: Standard Roof | F4: Upgrade 1 | H4: Upgrade 2 | J4: Upgrade 3
C7: lbs (kN) | D7: psf | E7: kPa | F7: psf | G7: kPa | H7: psf | I7: kPa | J7: psf | K7: kPa | N7: Bin Series | O7: R | P7: H | Q7: L | R7: 3 rad cbl | S7: +4 rad cbl | X7: Bin Series
B8: 15 | C8: 4000 (17.8) | D8: 49 | E8: 2.35 | F8: n/a | H8: n/a | J8: n/a | N8: 24 | O8: =N8/2/COS(RADIANS(30)) -> 13.85640646 | P8: =N8/2*TAN(RADIANS(30)) -> 6.92820323 | Q8: =O8/2 -> 6.92820323 | R8: =N8/2/2 -> 6 | T8: =Q8*COS(RADIANS(30)) -> 6 | U8: =T8*12 -> 72 | X8: 24
B9: 18 | D9: 49 | E9: 2.35 | N9: 27 | O9: 15.58845727 | P9: =N9/2*TAN(RADIANS(30)) -> 7.794228634 | Q9: =O9/2 -> 7.794228634 | R9: =N9/2/2 -> 6.75 | T9: 6.75 | U9: =T9*12 -> 81 | X9: 27
B10: 21 | D10: 33 | E10: 1.58 | F10: 50 | G10: 2.39 | N10: 30 | O10: 17.32050808 | P10: 8.660254038 | Q10: 8.660254038 | R10: 7.5 | T10: 7.5 | U10: 90 | X10: 30
B11: 24 | D11: 23 | E11: 1.1 | F11: 36 | G11: 1.72 | N11: 33 | O11: 19.05255888 | P11: 9.526279442 | Q11: 9.526279442 | R11: 8.25 | T11: 8.25 | U11: 99 | X11: 33
B12: 27 | C12: 5000 (22.2) | D12: 26 | E12: 1.24 | F12: 42 | G12: 2.01 | N12: 36 | O12: 20.78460969 | P12: 10.39230485 | Q12: =O12/3 -> 6.92820323 | S12: =N12/2/3 -> 6 | T12: =Q12*COS(RADIANS(30)) -> 6 | U12: 72 | V12: =N12*12/2-U12 -> 144 | W12: =V12/12 -> 12 | X12: 36
B13: 30 | D13: 22 | E13: 1.05 | F13: 34 | G13: 1.63 | H13: 43 | I13: 2.06 | N13: 39 | O13: 22.5166605 | P13: 11.25833025 | Q13: =O13/3 -> 7.505553499 | S13: =N13/2/3 -> 6.5 | T13: =Q13*COS(RADIANS(30)) -> 6.5 | U13: 78 | V13: =N13*12/2-U13 -> 156 | W13: =V13/12 -> 13 | X13: 39
B14: 33 | D14: 16 | E14: 0.77 | F14: 26 | G14: 1.24 | H14: 36 | I14: 1.72 | J14: 47 | K14: 2.25 | N14: 42 | O14: 24.24871131 | P14: 12.12435565 | Q14: 8.082903769 | S14: 7 | T14: 7 | U14: 84 | V14: 168 | W14: 14 | X14: 42
B15: 36 | D15: 26 | E15: 1.24 | F15: 33 | G15: 1.58 | H15: 42 | I15: 2.01 | J15: n/a | N15: 45 | O15: 25.98076211 | P15: 12.99038106 | Q15: 8.660254038 | S15: 7.5 | T15: 7.5 | U15: 90 | V15: 180 | W15: 15 | X15: 45
B16: 39 | D16: 24 | E16: 1.15 | F16: 29 | G16: 1.39 | H16: 39 | I16: 1.87 | N16: 48 | O16: 27.71281292 | P16: 13.85640646 | Q16: 9.237604307 | S16: 8 | T16: 8 | U16: 96 | V16: 192 | W16: 16 | X16: 48
B17: 42 | D17: 21 | E17: 1.01 | F17: 27 | G17: 1.29 | H17: 37 | I17: 1.77 | N17: 51 | O17: 29.44486373 | P17: 14.72243186 | Q17: 9.814954576 | S17: 8.5 | T17: 8.5 | U17: 102 | V17: 204 | W17: 17 | X17: 51
B18: 45 | D18: 18 | E18: 0.86 | F18: 26 | G18: 1.24 | H18: 35 | I18: 1.68 | N18: 54 | O18: 31.17691454 | P18: 15.58845727 | Q18: 10.39230485 | S18: 9 | T18: 9 | U18: 108 | V18: 216 | W18: 18 | X18: 54
B19: 48 | D19: 23 | E19: 1.1 | F19: 28 | G19: 1.34 | H19: 36 | I19: 1.72
B20: 51 | C20: 8000 (35.6) | D20: 22 | E20: 1.05 | F20: 31 | G20: 1.48 | H20: n/a | N20: Guardian
B21: 54 | D21: 19 | E21: 0.91 | F21: 30 | G21: 1.44 | N21: Diameter | O21: centre | P21: radius 1 | Q21: radius 2 | R21: radius 3
N22: 15 | O22: 1
N23: 18 | O23: 1
N24: 21 | O24: 1
N25: 24 | P25: 3 @ 7.00 ft
N26: 27 | P26: 3 @ 7.00 ft
N27: 30 | P27: 3 @ 7.50 ft
N28: 33 | P28: 3 @ 8.00 ft
N29: 36 | O29: 1 | P29: 3 @ 9.00 ft
N30: 39 | O30: 1 | P30: 3 @ 11.50 ft
N31: 42 | O31: 1 | P31: 4 @ 14.00 ft
N32: 45 | O32: 1 | P32: 4 @ 15.00 ft
N33: 48 | O33: 1 | P33: 5 @ 16.00 ft
N34: 51 | O34: 1 | P34: 6 @ 16.00 ft
N35: 54 | O35: 1 | P35: 6 @ 18.67 ft
N36: 60 | O36: 1 | P36: 7 @ 20.00 ft
N37: 66 | P37: 3 @ 10.00 ft | Q37: 8 @ 25.00 ft
N38: 72 | P38: 4 @ 10.00 ft | Q38: 9 @ 27.00 ft
N39: 75 | P39: 4 @ 10.00 ft | Q39: 10 @ 28.00 ft
N40: 78 | P40: 4 @ 10.00 ft | Q40: 10 @ 29.50 ft
N41: 84 | O41: 1 | P41: 5 @ 16.00 ft | Q41: 10 @ 32.00 ft
N42: 90 | O42: 1 | P42: 6 @ 18.00 ft | Q42: 12 @ 36.00 ft
N43: 96 | P43: 3 @ 10.00 ft | Q43: 8 @ 23.83 ft | R43: 12 @ 40.17 ft
N44: 102 | P44: 3 @ 10.00 ft | Q44: 8 @ 25.83 ft | R44: 17 @ 43.17 ft
N45: 105 | P45: 3 @ 9.00 ft | Q45: 9 @ 26.50 ft | R45: 16 @ 44.00 ft
N46: 108 | P46: 3 @ 9.00 ft | Q46: 9 @ 27.00 ft | R46: 18 @ 45.00 ft
